{"text_format":"1","workbook":"xlsx","n_sheets":2,"sheets":["Pasiūlymas","Subtiekėjai"],"not_rendered":{"charts":0,"images":0,"macros":1,"external_links":0,"defined_names":1,"comments":0,"pivot_tables":0},"unopened":[],"bounds":{"document_bytes":16777216,"sheet_cells":100000,"rows_first":2000,"rows_last":500,"rows_between":2000,"halvings":0,"cell_chars":16384,"cell_head_chars":4096},"cells_cut":0,"cells_raw":0,"read":"whole","date_system":"1900"}

{"sheet":"Pasiūlymas","index":0,"n_rows":1151,"n_cols":13,"rows_kept":1151,"cut":false,"hidden":false,"merged":[[1034,1,1034,7],[1105,1,1105,7],[934,1,934,7],[945,1,945,7],[963,1,963,7],[980,1,980,7],[991,1,991,7],[999,1,999,7],[516,1,516,7],[839,1,839,7],[866,1,866,7],[891,1,891,7],[906,1,906,7],[923,1,923,7],[18,0,18,1],[18,2,18,4],[19,0,19,1],[19,2,19,4],[22,0,22,5],[28,1,28,7],[15,0,15,1],[15,2,15,4],[16,0,16,1],[16,2,16,4],[17,0,17,1],[17,2,17,4],[12,0,12,1],[12,2,12,4],[13,0,13,1],[13,2,13,4],[14,0,14,1],[14,2,14,4],[9,0,9,1],[9,2,9,4],[10,0,10,1],[10,2,10,4],[11,0,11,1],[11,2,11,4]]}
["Perkančioji organizacija, kuriai teikiamas pasiūlymas:",null,"VŠĮ Kauno klinikinė ligoninė"]
[]
[null,"PASIŪLYMAS"]
[null,"Chirurginiai siūlai"]
[]
["Data:","2018 05 10"]
["Nr.:",1]
["Vieta:","Vilnius"]
[]
["Tiekėjo pavadinimas/Jeigu dalyvauja ūkio subjektų grupė, surašomi visi dalyvių pavadinimai/",null,"UAB Medekspert LT"]
["Įmonės kodas /Jeigu dalyvauja ūkio subjektų grupė, surašomi visi dalyvių kodai/",null,302454378]
["PVM mokėtojo kodas/Jeigu dalyvauja ūkio subjektų grupė, surašomi visi dalyvių kodai/"]
["Banko pavadinimas, banko kodas, sąskaitos Nr.",null,"AB Swedbank, 7300, LT477300010119212113"]
["Tiekėjo adresas/Jeigu dalyvauja ūkio subjektų grupė, surašomi visi dalyvių adresai/"]
["Telefono numeris",null,"8 5 2331949"]
["Fakso numeris",null,"8 5 233 1949"]
["El. pašto adresas",null,"info@medekspert.lt"]
["Asmens, pasirašiusio pasiūlymą saugiu elektroniniu parašu, vardas, pavardė, pareigos",null,"Direktorė Neringa Stankūnienė"]
["Asmens, įgalioto pasirašyti sutartį, vardas, pavardė, pareigos",null,"Direktorė Neringa Stankūnienė"]
[]
[]
[]
["1. Šiuo pasiūlymu pažymime, kad sutinkame su visomis pirkimo sąlygomis, nustatytomis:\n1) pirkimo skelbime, paskelbtame Viešųjų pirkimų įstatymo nustatyta tvarka;\n2) pirkimo sąlygose ir kituose pirkimo dokumentuose (jų paaiškinimuose, papildymuose)."]
[]
["Siūlomas pirkimo objektas visiškai atitinka pirkimo sąlygose nustatytus reikalavimus ir jo kaina yra:"]
[]
[]
["Nr.","Pavadinimas","Kiekis","Mato vienetas","Kaina be PVM","Suma be PVM","Siūlomos prekės pavadinimas ir gamintojas","Tikslūs siūlomi siūlo ir adatos ilgiai",null,null,"","",""]
["1.","Besirezorbuojantys chirurginiai siūlai"]
["1.1.","Besirezorbuojantis, sintetinis, pintas poliglikolio rūgšties siūlas, dengtas polikapralaktono ir kalcio sterato danga. Pilna rezorbcija po 60-90±5% dienų. Po 2 savaičių siūlas išlaiko apie 70±5% pirminio stiprumo, po 3 savaičių apie 50±5% pirminio stiprumo",960,"Vnt",null,null,null,null,"",""]
["1.1.1.","Siūlo storis USP - 1"]
["1.1.2.","Siūlo ilgis 75-90 cm"]
["1.1.3.","Siūlo spalva - Dažytas",null,null,null,null,null,null,null,""]
["1.1.4.","Adatos tipas - Apvali 1/2",null,null,null,null,null,null,null,null,null,""]
["1.1.5.","Adatos ilgis 64-65 mm",null,null,null,null,null,null,null,null,null,""]
["1.2.","Besirezorbuojantis, sintetinis, pintas poliglikolio rūgšties siūlas, dengtas polikapralaktono ir kalcio sterato danga. Pilna rezorbcija po 60-90±5% dienų. Po 2 savaičių siūlas išlaiko apie 70±5% pirminio stiprumo, po 3 savaičių apie 50±5% pirminio stiprumo",720,"Vnt",null,null,null,null,"","","",""]
["1.2.1.","Siūlo storis USP - 0",null,null,null,null,null,null,null,"","",""]
["1.2.2.","Siūlo ilgis 75-90 cm",null,null,null,null,null,null,null,"","",""]
["1.2.3.","Siūlo spalva - Dažytas"]
["1.2.4.","Adatos tipas - Apvali 1/2"]
["1.2.5.","Adatos ilgis 39-40 mm",null,null,null,null,null,null,null,""]
["1.3.","Besirezorbuojantis, sintetinis, pintas poliglikolio rūgšties siūlas, dengtas polikapralaktono ir kalcio sterato danga. Pilna rezorbcija po 60-90±5% dienų. Po 2 savaičių siūlas išlaiko apie 70±5% pirminio stiprumo, po 3 savaičių apie 50±5% pirminio stiprumo",5000,"Vnt",null,null,null,null,"",""]
["1.3.1.","Siūlo storis USP - 1",null,null,null,null,null,null,null,null,null,""]
["1.3.2.","Siūlo ilgis 75-90 cm",null,null,null,null,null,null,null,"",null,""]
["1.3.3.","Siūlo spalva - Dažytas",null,null,null,null,null,null,null,null,null,""]
["1.3.4.","Adatos tipas - Apvali 1/2"]
["1.3.5.","Adatos ilgis 47-48 mm",null,null,null,null,null,null,null,"","",""]
["1.4.","Besirezorbuojantis, sintetinis, pintas poliglikolio rūgšties siūlas, dengtas polikapralaktono ir kalcio sterato danga. Pilna rezorbcija po 60-90±5% dienų. Po 2 savaičių siūlas išlaiko apie 70±5% pirminio stiprumo, po 3 savaičių apie 50±5% pirminio stiprumo",11600,"Vnt",null,null,null,null,"","","",""]
["1.4.1.","Siūlo storis USP - 1",null,null,null,null,null,null,null,"","",""]
["1.4.2.","Siūlo ilgis 70-75 cm"]
["1.4.3.","Siūlo spalva - Dažytas"]
["1.4.4.","Adatos tipas - Apvali 1/2"]
["1.4.5.","Adatos ilgis 39-40 mm"]
["1.4.6.","Perkančioji organizacija prašo pateikti šios pirkimo dalies pavyzdį (ne mažiau keturis vienetus)"]
["1.5.","Besirezorbuojantis, sintetinis, pintas poliglikolio rūgšties siūlas, dengtas polikapralaktono ir kalcio sterato danga. Pilna rezorbcija po 60-90±5% dienų. Po 2 savaičių siūlas išlaiko apie 70±5% pirminio stiprumo, po 3 savaičių apie 50±5% pirminio stiprumo",1000,"Vnt",null,null,null,null,"",""]
["1.5.1.","Siūlo storis USP - 1"]
["1.5.2.","Siūlo ilgis 70-75 cm"]
["1.5.3.","Siūlo spalva - Dažytas"]
["1.5.4.","Adatos tipas - Apvali 1/2"]
["1.5.5.","Adatos ilgis 25-26 mm"]
["1.6.","Besirezorbuojantis, sintetinis, pintas poliglikolio rūgšties siūlas, dengtas polikapralaktono ir kalcio sterato danga. Pilna rezorbcija po 60-90±5% dienų. Po 2 savaičių siūlas išlaiko apie 70±5% pirminio stiprumo, po 3 savaičių apie 50±5% pirminio stiprumo",48,"Vnt",null,null,null,null,"",""]
["1.6.1.","Siūlo storis USP - 1"]
["1.6.2.","Siūlo ilgis 70-75 cm"]
["1.6.3.","Siūlo spalva - Dažytas"]
["1.6.4.","Adatos tipas - Apvali"]
["1.6.5.","Adatos ilgis 30-32 mm"]
["1.7.","Besirezorbuojantis, sintetinis, pintas poliglikolio rūgšties siūlas, dengtas polikapralaktono ir kalcio sterato danga. Pilna rezorbcija po 60-90±5% dienų. Po 2 savaičių siūlas išlaiko apie 70±5% pirminio stiprumo, po 3 savaičių apie 50±5% pirminio stiprumo",840,"Vnt",null,null,null,null,"",""]
["1.7.1.","Siūlo storis USP - 0"]
["1.7.2.","Siūlo ilgis 75-90 cm"]
["1.7.3.","Siūlo spalva - Dažytas"]
["1.7.4.","Adatos tipas - Apvali 1/2"]
["1.7.5.","Adatos ilgis 47-48 mm"]
["1.8.","Besirezorbuojantis, sintetinis, pintas poliglikolio rūgšties siūlas, dengtas polikapralaktono ir kalcio sterato danga. Pilna rezorbcija po 60-90±5% dienų. Po 2 savaičių siūlas išlaiko apie 70±5% pirminio stiprumo, po 3 savaičių apie 50±5% pirminio stiprumo",9100,"Vnt",null,null,null,null,"",""]
["1.8.1.","Siūlo storis USP - 0"]
["1.8.2.","Siūlo ilgis 70-75 cm"]
["1.8.3.","Siūlo spalva - Dažytas"]
["1.8.4.","Adatos tipas - Apvali 1/2"]
["1.8.5.","Adatos ilgis 37-38 mm"]
["1.9.","Besirezorbuojantis, sintetinis, pintas poliglikolio rūgšties siūlas, dengtas polikapralaktono ir kalcio sterato danga. Pilna rezorbcija po 60-90±5% dienų. Po 2 savaičių siūlas išlaiko apie 70±5% pirminio stiprumo, po 3 savaičių apie 50±5% pirminio stiprumo",240,"Vnt",null,null,null,null,"",""]
["1.9.1.","Siūlo storis USP - 0"]
["1.9.2.","Siūlo ilgis 70-75 cm"]
["1.9.3.","Siūlo spalva - Dažytas"]
["1.9.4.","Adatos tipas - Apvali 1/2"]
["1.9.5.","Adatos ilgis 30-31 mm"]
["1.10.","Besirezorbuojantis, sintetinis, pintas poliglikolio rūgšties siūlas, dengtas polikapralaktono ir kalcio sterato danga. Pilna rezorbcija po 60-90±5% dienų. Po 2 savaičių siūlas išlaiko apie 70±5% pirminio stiprumo, po 3 savaičių apie 50±5% pirminio stiprumo",180,"Vnt",null,null,null,null,"",""]
["1.10.1.","Siūlo storis USP - 6/0"]
["1.10.2.","Siūlo ilgis 70-75 cm"]
["1.10.3.","Siūlo spalva - Dažytas"]
["1.10.4.","Adatos tipas - Apvali 1/2"]
["1.10.5.","Adatos ilgis 20-21 mm"]
["1.11.","Besirezorbuojantis, sintetinis, pintas poliglikolio rūgšties siūlas, dengtas polikapralaktono ir kalcio sterato danga. Pilna rezorbcija po 60-90±5% dienų. Po 2 savaičių siūlas išlaiko apie 70±5% pirminio stiprumo, po 3 savaičių apie 50±5% pirminio stiprumo",240,"Vnt",null,null,null,null,"",""]
["1.11.1.","Siūlo storis USP - 5/0"]
["1.11.2.","Siūlo ilgis 70-75 cm"]
["1.11.3.","Siūlo spalva - Dažytas"]
["1.11.4.","Adatos tipas - Apvali 1/2"]
["1.11.5.","Adatos ilgis 19-20 mm"]
["1.12.","Besirezorbuojantis, sintetinis, pintas poliglikolio rūgšties siūlas, dengtas polikapralaktono ir kalcio sterato danga. Pilna rezorbcija po 60-90±5% dienų. Po 2 savaičių siūlas išlaiko apie 70±5% pirminio stiprumo, po 3 savaičių apie 50±5% pirminio stiprumo",60,"Vnt",null,null,null,null,"",""]
["1.12.1.","Siūlo storis USP - 4/0"]
["1.12.2.","Siūlo ilgis 70-75 cm"]
["1.12.3.","Siūlo spalva - Bespalvis"]
["1.12.4.","Adatos tipas - Tiesi pjaunanti"]
["1.12.5.","Adatos ilgis 60-61 mm"]
["1.13.","Besirezorbuojantis, sintetinis, pintas poliglikolio rūgšties siūlas, dengtas polikapralaktono ir kalcio sterato danga. Pilna rezorbcija po 60-90±5% dienų. Po 2 savaičių siūlas išlaiko apie 70±5% pirminio stiprumo, po 3 savaičių apie 50±5% pirminio stiprumo",2400,"Vnt",null,null,null,null,"",""]
["1.13.1.","Siūlo storis USP - 1"]
["1.13.2.","Siūlo ilgis 75-90 cm"]
["1.13.3.","Siūlo spalva - Dažytas"]
["1.13.4.","Adatos tipas - Pjaunanti 1/2"]
["1.13.5.","Adatos ilgis 38-40 mm"]
["1.14.","Besirezorbuojantis, sintetinis, pintas poliglikolio rūgšties siūlas, dengtas polikapralaktono ir kalcio sterato danga. Pilna rezorbcija po 60-90±5% dienų. Po 2 savaičių siūlas išlaiko apie 70±5% pirminio stiprumo, po 3 savaičių apie 50±5% pirminio stiprumo",1200,"Vnt",null,null,null,null,"",""]
["1.14.1.","Siūlo storis USP - 4/0"]
["1.14.2.","Siūlo ilgis 70-75 cm"]
["1.14.3.","Siūlo spalva - Dažytas"]
["1.14.4.","Adatos tipas - Apvali 1/2"]
["1.14.5.","Adatos ilgis 25-26 mm"]
["1.15.","Besirezorbuojantis, sintetinis, pintas poliglikolio rūgšties siūlas, dengtas polikapralaktono ir kalcio sterato danga. Pilna rezorbcija po 60-90±5% dienų. Po 2 savaičių siūlas išlaiko apie 70±5% pirminio stiprumo, po 3 savaičių apie 50±5% pirminio stiprumo",840,"Vnt",null,null,null,null,"",""]
["1.15.1.","Siūlo storis USP - 1"]
["1.15.2.","Siūlo ilgis 85-90 cm"]
["1.15.3.","Siūlo spalva - Dažytas"]
["1.15.4.","Adatos tipas - Pjaunanti 1/2"]
["1.15.5.","Adatos ilgis 46-48 mm"]
["1.16.","Besirezorbuojantis, sintetinis, pintas poliglikolio rūgšties siūlas, dengtas polikapralaktono ir kalcio sterato danga. Pilna rezorbcija po 60-90±5% dienų. Po 2 savaičių siūlas išlaiko apie 70±5% pirminio stiprumo, po 3 savaičių apie 50±5% pirminio stiprumo",1600,"Vnt",null,null,null,null,"",""]
["1.16.1.","Siūlo storis USP - 4/0"]
["1.16.2.","Siūlo ilgis 70-75 cm"]
["1.16.3.","Siūlo spalva - Dažytas"]
["1.16.4.","Adatos tipas - Apvali 1/2"]
["1.16.5.","Adatos ilgis 19-20 mm"]
["1.16.6.","Perkančioji organizacija prašo pateikti šios pirkimo dalies pavyzdį (ne mažiau keturis vienetus)"]
["1.17.","Besirezorbuojantis, sintetinis, pintas poliglikolio rūgšties siūlas, dengtas polikapralaktono ir kalcio sterato danga. Pilna rezorbcija po 60-90±5% dienų. Po 2 savaičių siūlas išlaiko apie 70±5% pirminio stiprumo, po 3 savaičių apie 50±5% pirminio stiprumo",1600,"Vnt",null,null,null,null,"",""]
["1.17.1.","Siūlo storis USP - 3/0"]
["1.17.2.","Siūlo ilgis 70-75 cm"]
["1.17.3.","Siūlo spalva - Dažytas"]
["1.17.4.","Adatos tipas - Apvali 1/2"]
["1.17.5.","Adatos ilgis 29-30 mm"]
["1.18.","Besirezorbuojantis, sintetinis, pintas poliglikolio rūgšties siūlas, dengtas polikapralaktono ir kalcio sterato danga. Pilna rezorbcija po 60-90±5% dienų. Po 2 savaičių siūlas išlaiko apie 70±5% pirminio stiprumo, po 3 savaičių apie 50±5% pirminio stiprumo",7600,"Vnt",null,null,null,null,"",""]
["1.18.1.","Siūlo storis USP - 3/0"]
["1.18.2.","Siūlo ilgis 70-75 cm"]
["1.18.3.","Siūlo spalva - Dažytas"]
["1.18.4.","Adatos tipas - Apvali 1/2"]
["1.18.5.","Adatos ilgis 25-26 mm"]
["1.19.","Besirezorbuojantis, sintetinis, pintas poliglikolio rūgšties siūlas, dengtas polikapralaktono ir kalcio sterato danga. Pilna rezorbcija po 60-90±5% dienų. Po 2 savaičių siūlas išlaiko apie 70±5% pirminio stiprumo, po 3 savaičių apie 50±5% pirminio stiprumo",2400,"Vnt",null,null,null,null,"",""]
["1.19.1.","Siūlo storis USP - 2/0"]
["1.19.2.","Siūlo ilgis 70-75 cm"]
["1.19.3.","Siūlo spalva - Dažytas"]
["1.19.4.","Adatos tipas - Apvali 1/2"]
["1.19.5.","Adatos ilgis 25-26 mm"]
["1.20.","Besirezorbuojantis, sintetinis, pintas poliglikolio rūgšties siūlas, dengtas polikapralaktono ir kalcio sterato danga. Pilna rezorbcija po 60-90±5% dienų. Po 2 savaičių siūlas išlaiko apie 70±5% pirminio stiprumo, po 3 savaičių apie 50±5% pirminio stiprumo",1400,"Vnt",null,null,null,null,"",""]
["1.20.1.","Siūlo storis USP - 2/0"]
["1.20.2.","Siūlo ilgis 70-75 cm"]
["1.20.3.","Siūlo spalva - Dažytas"]
["1.20.4.","Adatos tipas - Apvali 1/2"]
["1.20.5.","Adatos ilgis 29-30 mm"]
["1.21.","Besirezorbuojantis, sintetinis, pintas poliglikolio rūgšties siūlas, dengtas polikapralaktono ir kalcio sterato danga. Pilna rezorbcija po 60-90±5% dienų. Po 2 savaičių siūlas išlaiko apie 70±5% pirminio stiprumo, po 3 savaičių apie 50±5% pirminio stiprumo",3600,"Vnt",null,null,null,null,"",""]
["1.21.1.","Siūlo storis USP - 1"]
["1.21.2.","Siūlo ilgis 2x70-75 cm"]
["1.21.3.","Siūlo spalva - Dažytas"]
["1.21.4.","Adatos tipas -"]
["1.21.5.","Adatos ilgis"]
["1.22.","Besirezorbuojantis, sintetinis, pintas poliglikolio rūgšties siūlas, dengtas polikapralaktono ir kalcio sterato danga. Pilna rezorbcija po 60-90±5% dienų. Po 2 savaičių siūlas išlaiko apie 70±5% pirminio stiprumo, po 3 savaičių apie 50±5% pirminio stiprumo",1500,"Vnt",null,null,null,null,"",""]
["1.22.1.","Siūlo storis USP - 0"]
["1.22.2.","Siūlo ilgis 2x70-75 cm"]
["1.22.3.","Siūlo spalva - Dažytas"]
["1.22.4.","Adatos tipas -"]
["1.22.5.","Adatos ilgis"]
["1.23.","Besirezorbuojantis, sintetinis, pintas poliglikolio rūgšties siūlas, dengtas polikapralaktono ir kalcio sterato danga. Pilna rezorbcija po 60-90±5% dienų. Po 2 savaičių siūlas išlaiko apie 70±5% pirminio stiprumo, po 3 savaičių apie 50±5% pirminio stiprumo",1900,"Vnt",null,null,null,null,"",""]
["1.23.1.","Siūlo storis USP - 1"]
["1.23.2.","Siūlo ilgis 5x70-75 cm"]
["1.23.3.","Siūlo spalva - Dažytas"]
["1.23.4.","Adatos tipas -"]
["1.23.5.","Adatos ilgis"]
["1.24.","Besirezorbuojantis, sintetinis, pintas poliglikolio rūgšties siūlas, dengtas polikapralaktono ir kalcio sterato danga. Pilna rezorbcija po 60-90±5% dienų. Po 2 savaičių siūlas išlaiko apie 70±5% pirminio stiprumo, po 3 savaičių apie 50±5% pirminio stiprumo",800,"Vnt",null,null,null,null,"",""]
["1.24.1.","Siūlo storis USP - 0"]
["1.24.2.","Siūlo ilgis 5x70-75 cm"]
["1.24.3.","Siūlo spalva - Dažytas"]
["1.24.4.","Adatos tipas -"]
["1.24.5.","Adatos ilgis"]
["1.25.","Besirezorbuojantis, sintetinis, pintas poliglikolio rūgšties siūlas, dengtas polikapralaktono ir kalcio sterato danga. Pilna rezorbcija po 60-90±5% dienų. Po 2 savaičių siūlas išlaiko apie 70±5% pirminio stiprumo, po 3 savaičių apie 50±5% pirminio stiprumo",1800,"Vnt",null,null,null,null,"",""]
["1.25.1.","Siūlo storis USP - 3/0"]
["1.25.2.","Siūlo ilgis 2x70-75 cm"]
["1.25.3.","Siūlo spalva - Dažytas"]
["1.25.4.","Adatos tipas -"]
["1.25.5.","Adatos ilgis"]
["1.26.","Besirezorbuojantis, sintetinis, pintas poliglikolio rūgšties siūlas, dengtas polikapralaktono ir kalcio sterato danga. Pilna rezorbcija po 60-90±5% dienų. Po 2 savaičių siūlas išlaiko apie 70±5% pirminio stiprumo, po 3 savaičių apie 50±5% pirminio stiprumo",1600,"Vnt",null,null,null,null,"",""]
["1.26.1.","Siūlo storis USP - 3/0"]
["1.26.2.","Siūlo ilgis 5x70-75 cm"]
["1.26.3.","Siūlo spalva - Dažytas"]
["1.26.4.","Adatos tipas -"]
["1.26.5.","Adatos ilgis"]
["1.27.","Besirezorbuojantis, sintetinis, pintas poliglikolio rūgšties siūlas, dengtas polikapralaktono ir kalcio sterato danga. Pilna rezorbcija po 60-90±5% dienų. Po 2 savaičių siūlas išlaiko apie 70±5% pirminio stiprumo, po 3 savaičių apie 50±5% pirminio stiprumo",5600,"Vnt",null,null,null,null,"",""]
["1.27.1.","Siūlo storis USP - 1"]
["1.27.2.","Siūlo ilgis 75-90 cm"]
["1.27.3.","Siūlo spalva - Dažytas"]
["1.27.4.","Adatos tipas - Pjaunanti 1/2"]
["1.27.5.","Adatos ilgis 39-40 mm"]
["1.28.","Besirezorbuojantis, sintetinis, pintas poliglikolio rūgšties siūlas, dengtas polikapralaktono ir kalcio sterato danga. Pilna rezorbcija po 60-90±5% dienų. Po 2 savaičių siūlas išlaiko apie 70±5% pirminio stiprumo, po 3 savaičių apie 50±5% pirminio stiprumo",2800,"Vnt",null,null,null,null,"",""]
["1.28.1.","Siūlo storis USP - 1"]
["1.28.2.","Siūlo ilgis 70-75 cm"]
["1.28.3.","Siūlo spalva - Dažytas"]
["1.28.4.","Adatos tipas - Pjaunanti 1/2"]
["1.28.5.","Adatos ilgis 47-48 mm"]
["1.29.","Besirezorbuojantis, sintetinis, pintas poliglikolio rūgšties siūlas, dengtas polikapralaktono ir kalcio sterato danga. Pilna rezorbcija po 60-90±5% dienų. Po 2 savaičių siūlas išlaiko apie 70±5% pirminio stiprumo, po 3 savaičių apie 50±5% pirminio stiprumo",1200,"Vnt",null,null,null,null,"",""]
["1.29.1.","Siūlo storis USP - 1"]
["1.29.2.","Siūlo ilgis 70-75 cm"]
["1.29.3.","Siūlo spalva - Dažytas"]
["1.29.4.","Adatos tipas - Pjaunanti 1/2"]
["1.29.5.","Adatos ilgis 36-37 mm"]
["1.30.","Besirezorbuojantis, sintetinis, pintas poliglikolio rūgšties siūlas, dengtas polikapralaktono ir kalcio sterato danga. Pilna rezorbcija po 60-90±5% dienų. Po 2 savaičių siūlas išlaiko apie 70±5% pirminio stiprumo, po 3 savaičių apie 50±5% pirminio stiprumo",240,"Vnt",null,null,null,null,"",""]
["1.30.1.","Siūlo storis USP - 6/0"]
["1.30.2.","Siūlo ilgis 70-75 cm"]
["1.30.3.","Siūlo spalva - Bespalvis"]
["1.30.4.","Adatos tipas - Pjaunanti 3/8"]
["1.30.5.","Adatos ilgis 19-20 mm"]
["1.30.6.","Perkančioji organizacija prašo pateikti šios pirkimo dalies pavyzdį (ne mažiau keturis vienetus)"]
["1.31.","Besirezorbuojantis, sintetinis, pintas poliglikolio rūgšties siūlas, dengtas polikapralaktono ir kalcio sterato danga. Pilna rezorbcija po 60-90±5% dienų. Po 2 savaičių siūlas išlaiko apie 70±5% pirminio stiprumo, po 3 savaičių apie 50±5% pirminio stiprumo",240,"Vnt",null,null,null,null,"",""]
["1.31.1.","Siūlo storis USP - 5/0"]
["1.31.2.","Siūlo ilgis 70-75 cm"]
["1.31.3.","Siūlo spalva - Bespalvis"]
["1.31.4.","Adatos tipas - Pjaunanti 3/8"]
["1.31.5.","Adatos ilgis 19-20 mm"]
["1.32.","Besirezorbuojantis, sintetinis, pintas poliglikolio rūgšties siūlas, dengtas polikapralaktono ir kalcio sterato danga. Pilna rezorbcija po 60-90±5% dienų. Po 2 savaičių siūlas išlaiko apie 70±5% pirminio stiprumo, po 3 savaičių apie 50±5% pirminio stiprumo",2600,"Vnt",null,null,null,null,"",""]
["1.32.1.","Siūlo storis USP - 4/0"]
["1.32.2.","Siūlo ilgis 70-75 cm"]
["1.32.3.","Siūlo spalva - Bespalvis"]
["1.32.4.","Adatos tipas - Pjaunanti 3/8"]
["1.32.5.","Adatos ilgis 19-20 mm"]
["1.33.","Besirezorbuojantis, sintetinis, pintas poliglikolio rūgšties siūlas, dengtas polikapralaktono ir kalcio sterato danga. Pilna rezorbcija po 60-90±5% dienų. Po 2 savaičių siūlas išlaiko apie 70±5% pirminio stiprumo, po 3 savaičių apie 50±5% pirminio stiprumo",240,"Vnt",null,null,null,null,"",""]
["1.33.1.","Siūlo storis USP - 4/0"]
["1.33.2.","Siūlo ilgis 45-50 cm"]
["1.33.3.","Siūlo spalva - Bespalvis"]
["1.33.4.","Adatos tipas - Pjaunanti 3/8"]
["1.33.5.","Adatos ilgis 13-14 mm"]
["1.34.","Besirezorbuojantis, sintetinis, pintas poliglikolio rūgšties siūlas, dengtas polikapralaktono ir kalcio sterato danga. Pilna rezorbcija po 60-90±5% dienų. Po 2 savaičių siūlas išlaiko apie 70±5% pirminio stiprumo, po 3 savaičių apie 50±5% pirminio stiprumo",1200,"Vnt",null,null,null,null,"",""]
["1.34.1.","Siūlo storis USP - 3/0"]
["1.34.2.","Siūlo ilgis 70-75 cm"]
["1.34.3.","Siūlo spalva - Dažytas"]
["1.34.4.","Adatos tipas - Apvali pjaunančiu galu 1/2"]
["1.34.5.","Adatos ilgis 25-26 mm"]
["1.35.","Besirezorbuojantis, sintetinis, pintas poliglikolio rūgšties siūlas, dengtas polikapralaktono ir kalcio sterato danga. Pilna rezorbcija po 60-90±5% dienų. Po 2 savaičių siūlas išlaiko apie 70±5% pirminio stiprumo, po 3 savaičių apie 50±5% pirminio stiprumo",3600,"Vnt",null,null,null,null,"",""]
["1.35.1.","Siūlo storis USP - 2/0"]
["1.35.2.","Siūlo ilgis 70-75 cm"]
["1.35.3.","Siūlo spalva - Dažytas"]
["1.35.4.","Adatos tipas - Pjaunanti 1/2"]
["1.35.5.","Adatos ilgis 36-37 mm"]
["1.36.","Besirezorbuojantis, sintetinis, pintas poliglikolio rūgšties siūlas, dengtas polikapralaktono ir kalcio sterato danga. Pilna rezorbcija po 60-90±5% dienų. Po 2 savaičių siūlas išlaiko apie 70±5% pirminio stiprumo, po 3 savaičių apie 50±5% pirminio stiprumo",60,"Vnt",null,null,null,null,"",""]
["1.36.1.","Siūlo storis USP - 1"]
["1.36.2.","Siūlo ilgis - 150Kilpa"]
["1.36.3.","Siūlo spalva - Dažytas"]
["1.36.4.","Adatos tipas - Apvali 1/2"]
["1.36.5.","Adatos ilgis 40-41 mm"]
["1.37.","Besirezorbuojantis, sintetinis, pintas poliglikolio rūgšties siūlas, dengtas polikapralaktono ir kalcio sterato danga. Pilna rezorbcija po 60-90±5% dienų. Po 2 savaičių siūlas išlaiko apie 70±5% pirminio stiprumo, po 3 savaičių apie 50±5% pirminio stiprumo",3200,"Vnt",null,null,null,null,"",""]
["1.37.1.","Siūlo storis USP - 2/0"]
["1.37.2.","Siūlo ilgis 70-75 cm"]
["1.37.3.","Siūlo spalva - Dažytas"]
["1.37.4.","Adatos tipas - Apvali 1/2"]
["1.37.5.","Adatos ilgis 40-41 mm"]
["1.38.","Besirezorbuojantis, sintetinis, pintas poliglikolio rūgšties siūlas, dengtas polikapralaktono ir kalcio sterato danga. Pilna rezorbcija po 60-90±5% dienų. Po 2 savaičių siūlas išlaiko apie 70±5% pirminio stiprumo, po 3 savaičių apie 50±5% pirminio stiprumo",720,"Vnt",null,null,null,null,"",""]
["1.38.1.","Siūlo storis USP - 2/0"]
["1.38.2.","Siūlo ilgis 70-75 cm"]
["1.38.3.","Siūlo spalva - Dažytas"]
["1.38.4.","Adatos tipas - Apvali 1/2"]
["1.38.5.","Adatos ilgis 36-37 mm"]
["1.39.","Besirezorbuojantis, sintetinis, pintas poliglikolio rūgšties siūlas, dengtas polikapralaktono ir kalcio sterato danga. Pilna rezorbcija po 60-90±5% dienų. Po 2 savaičių siūlas išlaiko apie 70±5% pirminio stiprumo, po 3 savaičių apie 50±5% pirminio stiprumo",2600,"Vnt",null,null,null,null,"",""]
["1.39.1.","Siūlo storis USP - 2"]
["1.39.2.","Siūlo ilgis 70-75 cm"]
["1.39.3.","Siūlo spalva - Dažytas"]
["1.39.4.","Adatos tipas - Pjaunanti 1/2"]
["1.39.5.","Adatos ilgis 39-40 mm"]
["1.39.6.","Perkančioji organizacija prašo pateikti šios pirkimo dalies pavyzdį (ne mažiau keturis vienetus)"]
["1.40.","Besirezorbuojantis, sintetinis, pintas poliglikolio rūgšties siūlas, dengtas polikapralaktono ir kalcio sterato danga. Pilna rezorbcija po 60-90±5% dienų. Po 2 savaičių siūlas išlaiko apie 70±5% pirminio stiprumo, po 3 savaičių apie 50±5% pirminio stiprumo",3000,"Vnt",null,null,null,null,"",""]
["1.40.1.","Siūlo storis USP - 2"]
["1.40.2.","Siūlo ilgis 75-90 cm"]
["1.40.3.","Siūlo spalva - Dažytas"]
["1.40.4.","Adatos tipas - Pjaunanti 1/2"]
["1.40.5.","Adatos ilgis 47-48 mm"]
["1.41.","Besirezorbuojantis, sintetinis, pintas poliglikolio rūgšties siūlas, dengtas polikapralaktono ir kalcio sterato danga. Pilna rezorbcija po 60-90±5% dienų. Po 2 savaičių siūlas išlaiko apie 70±5% pirminio stiprumo, po 3 savaičių apie 50±5% pirminio stiprumo",120,"Vnt",null,null,null,null,"",""]
["1.41.1.","Siūlo storis USP - 4/0"]
["1.41.2.","Siūlo ilgis 70-75 cm"]
["1.41.3.","Siūlo spalva - Bespalvis"]
["1.41.4.","Adatos tipas - Pjaunanti tiesi"]
["1.41.5.","Adatos ilgis 59-60 mm"]
["1.42.","Besirezorbuojantis, sintetinis, pintas siūlas, pagamintas iš 90±2% glikolido ir 10±2% laktido, su padengimu. Pilna rezorbcija po 56-70±5% dienų. Po 2 savaičių siūlas išlaiko apie 75±5% pirminio stiprumo, po 3 savaičių siūlas išlaiko apie 50±5% pirminio stiprumo",2200,"Vnt",null,null,null,null,"",""]
["1.42.1.","Siūlo storis USP - 3/0"]
["1.42.2.","Siūlo ilgis 70-75 cm"]
["1.42.3.","Siūlo spalva - Dažytas"]
["1.42.4.","Adatos tipas - Apvali 1/2"]
["1.42.5.","Adatos ilgis 25-26 mm"]
["1.42.6.","Perkančioji organizacija prašo pateikti šios pirkimo dalies pavyzdį (ne mažiau keturis vienetus)"]
["1.43.","Besirezorbuojantis, sintetinis, pintas siūlas, pagamintas iš 90±2% glikolido ir 10±2% laktido, su padengimu. Pilna rezorbcija po 56-70±5% dienų. Po 2 savaičių siūlas išlaiko apie 75±5% pirminio stiprumo, po 3 savaičių siūlas išlaiko apie 50±5% pirminio stiprumo",120,"Vnt",null,null,null,null,"",""]
["1.43.1.","Siūlo storis USP - 1"]
["1.43.2.","Siūlo ilgis 85-90 cm"]
["1.43.3.","Siūlo spalva - Dažytas"]
["1.43.4.","Adatos tipas - Apvali 1/2"]
["1.43.5.","Adatos ilgis 47-48 mm"]
["1.44.","Besirezorbuojantis, sintetinis, pintas siūlas, pagamintas iš 90±2% glikolido ir 10±2% laktido, su padengimu. Pilna rezorbcija po 56-70±5% dienų. Po 2 savaičių siūlas išlaiko apie 75±5% pirminio stiprumo, po 3 savaičių siūlas išlaiko apie 50±5% pirminio stiprumo",192,"Vnt",null,null,null,null,"",""]
["1.44.1.","Siūlo storis USP - 1"]
["1.44.2.","Siūlo ilgis 85-90 cm"]
["1.44.3.","Siūlo spalva - Dažytas"]
["1.44.4.","Adatos tipas - Apvali 1/2"]
["1.44.5.","Adatos ilgis 38-40 mm"]
["1.45.","Besirezorbuojantis, sintetinis, pintas siūlas, pagamintas iš 90±2% glikolido ir 10±2% laktido, su padengimu. Pilna rezorbcija po 56-70±5% dienų. Po 2 savaičių siūlas išlaiko apie 75±5% pirminio stiprumo, po 3 savaičių siūlas išlaiko apie 50±5% pirminio stiprumo",960,"Vnt",null,null,null,null,"",""]
["1.45.1.","Siūlo storis USP - 0"]
["1.45.2.","Siūlo ilgis 85-90 cm"]
["1.45.3.","Siūlo spalva - Dažytas"]
["1.45.4.","Adatos tipas - Apvali 1/2"]
["1.45.5.","Adatos ilgis 38-40 mm"]
["1.46.","Besirezorbuojantis, sintetinis, pintas siūlas, pagamintas iš 90±2% glikolido ir 10±2% laktido, su padengimu. Pilna rezorbcija po 56-70±5% dienų. Po 2 savaičių siūlas išlaiko apie 75±5% pirminio stiprumo, po 3 savaičių siūlas išlaiko apie 50±5% pirminio stiprumo",60,"Vnt",null,null,null,null,"",""]
["1.46.1.","Siūlo storis USP - 4/0"]
["1.46.2.","Siūlo ilgis 12x45-50 cm"]
["1.46.3.","Siūlo spalva - Dažytas"]
["1.46.4.","Adatos tipas -"]
["1.46.5.","Adatos ilgis"]
["1.47.","Besirezorbuojantis, sintetinis, pintas siūlas, pagamintas iš 90±2% glikolido ir 10±2% laktido, su padengimu. Pilna rezorbcija po 56-70±5% dienų. Po 2 savaičių siūlas išlaiko apie 75±5% pirminio stiprumo, po 3 savaičių siūlas išlaiko apie 50±5% pirminio stiprumo",60,"Vnt",null,null,null,null,"",""]
["1.47.1.","Siūlo storis USP - 4/0"]
["1.47.2.","Siūlo ilgis 5x70-75 cm"]
["1.47.3.","Siūlo spalva - Dažytas"]
["1.47.4.","Adatos tipas -"]
["1.47.5.","Adatos ilgis"]
["1.48.","Besirezorbuojantis, sintetinis, pintas siūlas, pagamintas iš 90±2% glikolido ir 10±2% laktido, su padengimu. Pilna rezorbcija po 56-70±5% dienų. Po 2 savaičių siūlas išlaiko apie 75±5% pirminio stiprumo, po 3 savaičių siūlas išlaiko apie 50±5% pirminio stiprumo",60,"Vnt",null,null,null,null,"",""]
["1.48.1.","Siūlo storis USP - 4/0"]
["1.48.2.","Siūlo ilgis 3x45-50 cm"]
["1.48.3.","Siūlo spalva - Dažytas"]
["1.48.4.","Adatos tipas -"]
["1.48.5.","Adatos ilgis"]
["1.49.","Besirezorbuojantis, sintetinis, pintas poliglikolio rūgšties siūlas. Pilna rezorbcija apie 42±5% dienos",240,"Vnt",null,null,null,null,"",""]
["1.49.1.","Siūlo storis USP - 6/0"]
["1.49.2.","Siūlo ilgis 45-75 cm"]
["1.49.3.","Siūlo spalva - Bespalvis"]
["1.49.4.","Adatos tipas - Pjaunanti 3/8"]
["1.49.5.","Adatos ilgis 11-13 mm adata"]
["1.50.","Besirezorbuojantis, sintetinis, pintas poliglikolio rūgšties siūlas. Pilna rezorbcija apie 42±5% dienos",500,"Vnt",null,null,null,null,"",""]
["1.50.1.","Siūlo storis USP - 4/0"]
["1.50.2.","Siūlo ilgis 70-75 cm"]
["1.50.3.","Siūlo spalva - Bespalvis"]
["1.50.4.","Adatos tipas - Pjaunanti 3/8"]
["1.50.5.","Adatos ilgis 19-20 mm"]
["1.51.","Besirezorbuojantis, sintetinis, pintas poliglikolio rūgšties siūlas. Pilna rezorbcija apie 42±5% dienos",500,"Vnt",null,null,null,null,"",""]
["1.51.1.","Siūlo storis USP - 5/0"]
["1.51.2.","Siūlo ilgis 70-75 cm"]
["1.51.3.","Siūlo spalva - Bespalvis"]
["1.51.4.","Adatos tipas - Pjaunanti 3/8"]
["1.51.5.","Adatos ilgis 19-20 mm"]
["1.51.6.","Perkančioji organizacija prašo pateikti šios pirkimo dalies pavyzdį (ne mažiau keturis vienetus)"]
["1.52.","Besirezorbuojantis, sintetinis, pintas poliglikolio rūgšties siūlas. Pilna rezorbcija apie 42±5% dienos",240,"Vnt",null,null,null,null,"",""]
["1.52.1.","Siūlo storis USP - 5/0"]
["1.52.2.","Siūlo ilgis 70-75 cm"]
["1.52.3.","Siūlo spalva - Bespalvis"]
["1.52.4.","Adatos tipas - Apvali 1/2"]
["1.52.5.","Adatos ilgis 17-18 mm"]
["1.53.","Besirezorbuojantis, sintetinis, pintas poliglikolio rūgšties siūlas. Pilna rezorbcija apie 42±5% dienos",240,"Vnt",null,null,null,null,"",""]
["1.53.1.","Siūlo storis USP - 4/0"]
["1.53.2.","Siūlo ilgis 70-75 cm"]
["1.53.3.","Siūlo spalva - Bespalvis"]
["1.53.4.","Adatos tipas - Apvali 1/2"]
["1.53.5.","Adatos ilgis 19-20 mm"]
["1.54.","Besirezorbuojantis, sintetinis, pintas poliglikolio rūgšties siūlas. Pilna rezorbcija apie 42±5% dienos",500,"Vnt",null,null,null,null,"",""]
["1.54.1.","Siūlo storis USP - 3/0"]
["1.54.2.","Siūlo ilgis 70-75 cm"]
["1.54.3.","Siūlo spalva - Bespalvis"]
["1.54.4.","Adatos tipas - Apvali 1/2"]
["1.54.5.","Adatos ilgis 25-26 mm"]
["1.55.","Besirezorbuojantis, sintetinis, pintas poliglikolio rūgšties siūlas. Pilna rezorbcija apie 42±5% dienos",500,"Vnt",null,null,null,null,"",""]
["1.55.1.","Siūlo storis USP - 0"]
["1.55.2.","Siūlo ilgis 85-90 cm"]
["1.55.3.","Siūlo spalva - Bespalvis"]
["1.55.4.","Adatos tipas - Apvali 1/2"]
["1.55.5.","Adatos ilgis 39-40 mm"]
["1.56.","Besirezorbuojantis, sintetinis, pintas poliglikolio rūgšties siūlas. Pilna rezorbcija apie 42±5% dienos",120,"Vnt",null,null,null,null,"",""]
["1.56.1.","Siūlo storis USP - 4/0"]
["1.56.2.","Siūlo ilgis 3x45-50 cm"]
["1.56.3.","Siūlo spalva - Bespalvis"]
["1.56.4.","Adatos tipas -"]
["1.56.5.","Adatos ilgis"]
["1.57.","Besirezorbuojantis sintetinis, monofilamentinis siūlas, pagamintas iš 75±2% poliglikolio rūgšties ir 25±2% polikapralaktono. Pilna rezorbcija po 90-120±5% dienų. Stiprumo išlaikymas po 1 savaitės 60±5% dažyto siūlo ir 50±5% nedažyto siūlo, po 2 savaičių 30±5% dažyto siūlo ir 20±5% nedažyto siūlo",800,"Vnt",null,null,null,null,"",""]
["1.57.1.","Siūlo storis USP - 2/0"]
["1.57.2.","Siūlo ilgis 70-75 cm"]
["1.57.3.","Siūlo spalva - Dažytas"]
["1.57.4.","Adatos tipas - Apvali 1/2"]
["1.57.5.","Adatos ilgis 26-27mm"]
["1.58.","Besirezorbuojantis sintetinis, monofilamentinis siūlas, pagamintas iš 75±2% poliglikolio rūgšties ir 25±2% polikapralaktono. Pilna rezorbcija po 90-120±5% dienų. Stiprumo išlaikymas po 1 savaitės 60±5% dažyto siūlo ir 50±5% nedažyto siūlo, po 2 savaičių 30±5% dažyto siūlo ir 20±5% nedažyto siūlo",600,"Vnt",null,null,null,null,"",""]
["1.58.1.","Siūlo storis USP - 3/0"]
["1.58.2.","Siūlo ilgis 70-75 cm"]
["1.58.3.","Siūlo spalva - Dažytas"]
["1.58.4.","Adatos tipas - Apvali 1/2"]
["1.58.5.","Adatos ilgis 17-19 mm"]
["1.59.","Besirezorbuojantis sintetinis, monofilamentinis siūlas, pagamintas iš 75±2% poliglikolio rūgšties ir 25±2% polikapralaktono. Pilna rezorbcija po 90-120±5% dienų. Stiprumo išlaikymas po 1 savaitės 60±5% dažyto siūlo ir 50±5% nedažyto siūlo, po 2 savaičių 30±5% dažyto siūlo ir 20±5% nedažyto siūlo",900,"Vnt",null,null,null,null,"",""]
["1.59.1.","Siūlo storis USP - 3/0"]
["1.59.2.","Siūlo ilgis 70-75 cm"]
["1.59.3.","Siūlo spalva - Dažytas"]
["1.59.4.","Adatos tipas - Apvali 1/2"]
["1.59.5.","Adatos ilgis 25-26 mm"]
["1.59.6.","Perkančioji organizacija prašo pateikti šios pirkimo dalies pavyzdį (ne mažiau keturis vienetus)"]
["1.60.","Besirezorbuojantis sintetinis, monofilamentinis siūlas, pagamintas iš 75±2% poliglikolio rūgšties ir 25±2% polikapralaktono. Pilna rezorbcija po 90-120±5% dienų. Stiprumo išlaikymas po 1 savaitės 60±5% dažyto siūlo ir 50±5% nedažyto siūlo, po 2 savaičių 30±5% dažyto siūlo ir 20±5% nedažyto siūlo",800,"Vnt",null,null,null,null,"",""]
["1.60.1.","Siūlo storis USP - 4/0"]
["1.60.2.","Siūlo ilgis 70-75 cm"]
["1.60.3.","Siūlo spalva - Dažytas"]
["1.60.4.","Adatos tipas - Apvali 1/2"]
["1.60.5.","Adatos ilgis 19-20 mm"]
["1.60.6.","Perkančioji organizacija prašo pateikti šios pirkimo dalies pavyzdį (ne mažiau keturis vienetus)"]
["1.61.","Besirezorbuojantis sintetinis, monofilamentinis siūlas, pagamintas iš 75±2% poliglikolio rūgšties ir 25±2% polikapralaktono. Pilna rezorbcija po 90-120±5% dienų. Stiprumo išlaikymas po 1 savaitės 60±5% dažyto siūlo ir 50±5% nedažyto siūlo, po 2 savaičių 30±5% dažyto siūlo ir 20±5% nedažyto siūlo",800,"Vnt",null,null,null,null,"",""]
["1.61.1.","Siūlo storis USP - 4/0"]
["1.61.2.","Siūlo ilgis 70-75 cm"]
["1.61.3.","Siūlo spalva - Bespalvis"]
["1.61.4.","Adatos tipas - Pjaunanti 3/8"]
["1.61.5.","Adatos ilgis 19-20 mm"]
["1.62.","Besirezorbuojantis sintetinis, monofilamentinis siūlas, pagamintas iš 75±2% poliglikolio rūgšties ir 25±2% polikapralaktono. Pilna rezorbcija po 90-120±5% dienų. Stiprumo išlaikymas po 1 savaitės 60±5% dažyto siūlo ir 50±5% nedažyto siūlo, po 2 savaičių 30±5% dažyto siūlo ir 20±5% nedažyto siūlo",600,"Vnt",null,null,null,null,"",""]
["1.62.1.","Siūlo storis USP - 0"]
["1.62.2.","Siūlo ilgis 70-90 cm"]
["1.62.3.","Siūlo spalva - Dažytas"]
["1.62.4.","Adatos tipas - Apvali 1/2"]
["1.62.5.","Adatos ilgis 36-40 mm"]
["1.63.","Besirezorbuojantis sintetinis, monofilamentinis polidioksanono siūlas. Pilna rezorbcija po 180-210±5% dienų. Stiprumo išlaikymas po 4 savaičių apie 70-75±5%, po 6 savaičių apie 50-60±5%",440,"Vnt",null,null,null,null,"",""]
["1.63.1.","Siūlo storis USP - 0"]
["1.63.2.","Siūlo ilgis 75-90 cm"]
["1.63.3.","Siūlo spalva - Dažytas"]
["1.63.4.","Adatos tipas - Apvali 1/2"]
["1.63.5.","Adatos ilgis 47-48 mm"]
["1.64.","Besirezorbuojantis sintetinis, monofilamentinis polidioksanono siūlas. Pilna rezorbcija po 180-210±5% dienų. Stiprumo išlaikymas po 4 savaičių apie 70-75±5%, po 6 savaičių apie 50-60±5%",300,"Vnt",null,null,null,null,"",""]
["1.64.1.","Siūlo storis USP - 0"]
["1.64.2.","Siūlo ilgis 70-75 cm"]
["1.64.3.","Siūlo spalva - Dažytas"]
["1.64.4.","Adatos tipas - Apvali 1/2"]
["1.64.5.","Adatos ilgis 37-40 mm"]
["1.65.","Besirezorbuojantis sintetinis, monofilamentinis polidioksanono siūlas. Pilna rezorbcija po 180-210±5% dienų. Stiprumo išlaikymas po 4 savaičių apie 70-75±5%, po 6 savaičių apie 50-60±5%",80,"Vnt",null,null,null,null,"",""]
["1.65.1.","Siūlo storis USP - 0"]
["1.65.2.","Siūlo ilgis 150 kilpa"]
["1.65.3.","Siūlo spalva - Dažytas"]
["1.65.4.","Adatos tipas - Apvali 1/2"]
["1.65.5.","Adatos ilgis 64-66 mm"]
["1.66.","Besirezorbuojantis sintetinis, monofilamentinis polidioksanono siūlas. Pilna rezorbcija po 180-210±5% dienų. Stiprumo išlaikymas po 4 savaičių apie 70-75±5%, po 6 savaičių apie 50-60±5%",800,"Vnt",null,null,null,null,"",""]
["1.66.1.","Siūlo storis USP - 3/0"]
["1.66.2.","Siūlo ilgis 70-75 cm"]
["1.66.3.","Siūlo spalva - Dažytas"]
["1.66.4.","Adatos tipas - Pjaunanti 1/2"]
["1.66.5.","Adatos ilgis 25-26 mm"]
["1.67.","Besirezorbuojantis sintetinis, monofilamentinis polidioksanono siūlas. Pilna rezorbcija po 180-210±5% dienų. Stiprumo išlaikymas po 4 savaičių apie 70-75±5%, po 6 savaičių apie 50-60±5%",800,"Vnt",null,null,null,null,"",""]
["1.67.1.","Siūlo storis USP - 3/0"]
["1.67.2.","Siūlo ilgis 70-75 cm"]
["1.67.3.","Siūlo spalva - Dažytas"]
["1.67.4.","Adatos tipas - Apvali 1/2"]
["1.67.5.","Adatos ilgis 25-26 mm"]
["1.68.","Besirezorbuojantis sintetinis, monofilamentinis polidioksanono siūlas. Pilna rezorbcija po 180-210±5% dienų. Stiprumo išlaikymas po 4 savaičių apie 70-75±5%, po 6 savaičių apie 50-60±5%",800,"Vnt",null,null,null,null,"",""]
["1.68.1.","Siūlo storis USP - 2/0"]
["1.68.2.","Siūlo ilgis 70-75 cm"]
["1.68.3.","Siūlo spalva - Dažytas"]
["1.68.4.","Adatos tipas - Pjaunanti 1/2"]
["1.68.5.","Adatos ilgis 25-26 mm"]
["1.69.","Besirezorbuojantis sintetinis, monofilamentinis polidioksanono siūlas. Pilna rezorbcija po 180-210±5% dienų. Stiprumo išlaikymas po 4 savaičių apie 70-75±5%, po 6 savaičių apie 50-60±5%",1600,"Vnt",null,null,null,null,"",""]
["1.69.1.","Siūlo storis USP - 2/0"]
["1.69.2.","Siūlo ilgis 70-75 cm"]
["1.69.3.","Siūlo spalva - Dažytas"]
["1.69.4.","Adatos tipas - Apvali 1/2"]
["1.69.5.","Adatos ilgis 25-26 mm"]
["1.70.","Besirezorbuojantis sintetinis, monofilamentinis polidioksanono siūlas. Pilna rezorbcija po 180-210±5% dienų. Stiprumo išlaikymas po 4 savaičių apie 70-75±5%, po 6 savaičių apie 50-60±5%",1400,"Vnt",null,null,null,null,"",""]
["1.70.1.","Siūlo storis USP - 0"]
["1.70.2.","Siūlo ilgis 150Kilpa"]
["1.70.3.","Siūlo spalva - Dažytas"]
["1.70.4.","Adatos tipas - Apvali 1/2"]
["1.70.5.","Adatos ilgis 40-41 mm"]
["1.71.","Besirezorbuojantis sintetinis, monofilamentinis polidioksanono siūlas. Pilna rezorbcija po 180-210±5% dienų. Stiprumo išlaikymas po 4 savaičių apie 70-75±5%, po 6 savaičių apie 50-60±5%",600,"Vnt",null,null,null,null,"",""]
["1.71.1.","Siūlo storis USP - 0"]
["1.71.2.","Siūlo ilgis 150Kilpa"]
["1.71.3.","Siūlo spalva - Dažytas"]
["1.71.4.","Adatos tipas - Apvali 1/2"]
["1.71.5.","Adatos ilgis 48-50 mm"]
["1.72.","Besirezorbuojantis sintetinis, monofilamentinis polidioksanono siūlas. Pilna rezorbcija po 180-210±5% dienų. Stiprumo išlaikymas po 4 savaičių apie 70-75±5%, po 6 savaičių apie 50-60±5%",480,"Vnt",null,null,null,null,"",""]
["1.72.1.","Siūlo storis USP - 1"]
["1.72.2.","Siūlo ilgis 150Kilpa"]
["1.72.3.","Siūlo spalva - Dažytas"]
["1.72.4.","Adatos tipas - Apvali 1/2"]
["1.72.5.","Adatos ilgis 40-41 mm"]
["1.73.","Besirezorbuojantis sintetinis, monofilamentinis polidioksanono siūlas. Pilna rezorbcija po 180-210±5% dienų. Stiprumo išlaikymas po 4 savaičių apie 70-75±5%, po 6 savaičių apie 50-60±5%",1200,"Vnt",null,null,null,null,"",""]
["1.73.1.","Siūlo storis USP - 1"]
["1.73.2.","Siūlo ilgis 150Kilpa"]
["1.73.3.","Siūlo spalva - Dažytas"]
["1.73.4.","Adatos tipas - Apvali 1/2"]
["1.73.5.","Adatos ilgis 48-50 mm"]
["1.73.6.","Perkančioji organizacija prašo pateikti šios pirkimo dalies pavyzdį (ne mažiau keturis vienetus)"]
["1.74.","Besirezorbuojantis sintetinis, monofilamentinis polidioksanono siūlas. Pilna rezorbcija po 180-210±5% dienų. Stiprumo išlaikymas po 4 savaičių apie 70-75±5%, po 6 savaičių apie 50-60±5%",60,"Vnt",null,null,null,null,"",""]
["1.74.1.","Siūlo storis USP - 0"]
["1.74.2.","Siūlo ilgis 130Kilpa, siūlas dantytas nereikalaujantis mazgo"]
["1.74.3.","Siūlo spalva -"]
["1.74.4.","Adatos tipas - Apvali pjaunančiu galu 1/2"]
["1.74.5.","Adatos ilgis 48-50 mm"]
["1.75.","Besirezorbuojantis sintetinis, monofilamentinis polidioksanono siūlas. Pilna rezorbcija po 180-210±5% dienų. Stiprumo išlaikymas po 4 savaičių apie 70-75±5%, po 6 savaičių apie 50-60±5%",60,"Vnt",null,null,null,null,"",""]
["1.75.1.","Siūlo storis USP - 0"]
["1.75.2.","Siūlo ilgis 130Kilpa, siūlas dantytas nereikalaujantis mazgo"]
["1.75.3.","Siūlo spalva -"]
["1.75.4.","Adatos tipas - Apvali 1/2"]
["1.75.5.","Adatos ilgis 48-50 mm"]
["1.76.","Besirezorbuojantis sintetinis, monofilamentinis polidioksanono siūlas. Pilna rezorbcija po 180-210±5% dienų. Stiprumo išlaikymas po 4 savaičių apie 70-75±5%, po 6 savaičių apie 50-60±5%",60,"Vnt",null,null,null,null,"",""]
["1.76.1.","Siūlo storis USP - 1"]
["1.76.2.","Siūlo ilgis 130Kilpa, siūlas dantytas nereikalaujantis mazgo"]
["1.76.3.","Siūlo spalva -"]
["1.76.4.","Adatos tipas - Apvali 1/2"]
["1.76.5.","Adatos ilgis 48-50 mm"]
["1.77.","Besirezorbuojantis sintetinis, monofilamentinis polidioksanono siūlas. Pilna rezorbcija po 180-210±5% dienų. Stiprumo išlaikymas po 4 savaičių apie 70-75±5%, po 6 savaičių apie 50-60±5%",72,"Vnt",null,null,null,null,"",""]
["1.77.1.","Siūlo storis USP - 5/0"]
["1.77.2.","Siūlo ilgis 70-75 cm"]
["1.77.3.","Siūlo spalva - Dažytas"]
["1.77.4.","Adatos tipas - Apvali 1/2"]
["1.77.5.","Adatos ilgis 17-19 mm"]
["1.78.","Besirezorbuojantis sintetinis, monofilamentinis polidioksanono siūlas. Pilna rezorbcija po 180-210±5% dienų. Stiprumo išlaikymas po 4 savaičių apie 70-75±5%, po 6 savaičių apie 50-60±5%",120,"Vnt",null,null,null,null,"",""]
["1.78.1.","Siūlo storis USP - 5/0"]
["1.78.2.","Siūlo ilgis 45 cm"]
["1.78.3.","Siūlo spalva - Dažytas"]
["1.78.4.","Adatos tipas - Pjaunanti 3/8"]
["1.78.5.","Adatos ilgis 16-19 mm"]
["1.79.","Besirezorbuojantis sintetinis, monofilamentinis polidioksanono siūlas. Pilna rezorbcija po 180-210±5% dienų. Stiprumo išlaikymas po 4 savaičių apie 70-75±5%, po 6 savaičių apie 50-60±5%",480,"Vnt",null,null,null,null,"",""]
["1.79.1.","Siūlo storis USP - 4/0"]
["1.79.2.","Siūlo ilgis 70-75 cm"]
["1.79.3.","Siūlo spalva - Dažytas"]
["1.79.4.","Adatos tipas - Apvali 1/2"]
["1.79.5.","Adatos ilgis 19-20 mm"]
[null,"","","","Suma be PVM",null,"","","","","",""]
[null,"","","","PVM suma",null,"","","","","",""]
[null,"","","","Suma su PVM",null,"","","","","",""]
[]
["2.","Nesirezorbuojantys chirurginiai siūlai"]
["2.1.","Sintetinis, monofilomentinis, nesirezorbuojantis polipropileno siūlas",1200,"Vnt",null,null,null,null,"",""]
["2.1.1.","Siūlo storis USP- 1"]
["2.1.2.","Siūlo ilgis 70-75 cm"]
["2.1.3.","Siūlo spalva - Dažytas"]
["2.1.4.","Adatos tipas - Apvali 1/2"]
["2.1.5.","Adatos ilgis 39-40 mm"]
["2.2.","Sintetinis, monofilomentinis, nesirezorbuojantis polipropileno siūlas",1600,"Vnt",null,null,null,null,"",""]
["2.2.1.","Siūlo storis USP- 0"]
["2.2.2.","Siūlo ilgis 70-75 cm"]
["2.2.3.","Siūlo spalva - Dažytas"]
["2.2.4.","Adatos tipas - Apvali 1/2"]
["2.2.5.","Adatos ilgis 39-40 mm"]
["2.3.","Sintetinis, monofilomentinis, nesirezorbuojantis polipropileno siūlas",500,"Vnt",null,null,null,null,"",""]
["2.3.1.","Siūlo storis USP- 0"]
["2.3.2.","Siūlo ilgis 70-75 cm"]
["2.3.3.","Siūlo spalva - Dažytas"]
["2.3.4.","Adatos tipas - Apvali 1/2"]
["2.3.5.","Adatos ilgis 37-38 mm"]
["2.4.","Sintetinis, monofilomentinis, nesirezorbuojantis polipropileno siūlas",1600,"Vnt",null,null,null,null,"",""]
["2.4.1.","Siūlo storis USP- 2/0"]
["2.4.2.","Siūlo ilgis 75-90 cm"]
["2.4.3.","Siūlo spalva - Dažytas"]
["2.4.4.","Adatos tipas - Apvali 1/2"]
["2.4.5.","Adatos ilgis 26-27 mm"]
["2.5.","Sintetinis, monofilomentinis, nesirezorbuojantis polipropileno siūlas",4200,"Vnt",null,null,null,null,"",""]
["2.5.1.","Siūlo storis USP- 2/0"]
["2.5.2.","Siūlo ilgis 75-90 cm"]
["2.5.3.","Siūlo spalva - Dažytas"]
["2.5.4.","Adatos tipas - Pjaunanti 3/8"]
["2.5.5.","Adatos ilgis 24-30 mm"]
["2.5.6.","Perkančioji organizacija prašo pateikti šios pirkimo dalies pavyzdį (ne mažiau keturis vienetus)"]
["2.6.","Sintetinis, monofilomentinis, nesirezorbuojantis polipropileno siūlas",1200,"Vnt",null,null,null,null,"",""]
["2.6.1.","Siūlo storis USP- 3/0"]
["2.6.2.","Siūlo ilgis 75-90 cm"]
["2.6.3.","Siūlo spalva - Dažytas"]
["2.6.4.","Adatos tipas - Apvali 1/2"]
["2.6.5.","Adatos ilgis 26-27 mm"]
["2.7.","Sintetinis, monofilomentinis, nesirezorbuojantis polipropileno siūlas",5000,"Vnt",null,null,null,null,"",""]
["2.7.1.","Siūlo storis USP- 3/0"]
["2.7.2.","Siūlo ilgis 75-90 cm"]
["2.7.3.","Siūlo spalva - Dažytas"]
["2.7.4.","Adatos tipas - Pjaunanti 3/8"]
["2.7.5.","Adatos ilgis 23-24 mm"]
["2.7.6.","Perkančioji organizacija prašo pateikti šios pirkimo dalies pavyzdį (ne mažiau keturis vienetus)"]
["2.8.","Sintetinis, monofilomentinis, nesirezorbuojantis polipropileno siūlas",500,"Vnt",null,null,null,null,"",""]
["2.8.1.","Siūlo storis USP- 4/0"]
["2.8.2.","Siūlo ilgis 75-90 cm"]
["2.8.3.","Siūlo spalva - Dažytas"]
["2.8.4.","Adatos tipas - Apvali 1/2"]
["2.8.5.","Adatos ilgis 20-21 mm"]
["2.9.","Sintetinis, monofilomentinis, nesirezorbuojantis polipropileno siūlas",120,"Vnt",null,null,null,null,"",""]
["2.9.1.","Siūlo storis USP- 4/0"]
["2.9.2.","Siūlo ilgis 85-90 cm"]
["2.9.3.","Siūlo spalva - Dažytas"]
["2.9.4.","Adatos tipas - Apvali 1/2. 2 adatos"]
["2.9.5.","Adatos ilgis 20-21 mm"]
["2.10.","Sintetinis, monofilomentinis, nesirezorbuojantis polipropileno siūlas",72,"Vnt",null,null,null,null,"",""]
["2.10.1.","Siūlo storis USP- 6/0"]
["2.10.2.","Siūlo ilgis 70-75 cm"]
["2.10.3.","Siūlo spalva - Dažytas"]
["2.10.4.","Adatos tipas - Apvali 3/8, 2 adatos"]
["2.10.5.","Adatos ilgis 12-13 mm"]
["2.11.","Sintetinis, monofilomentinis, nesirezorbuojantis polipropileno siūlas",36,"Vnt",null,null,null,null,"",""]
["2.11.1.","Siūlo storis USP- 7/0"]
["2.11.2.","Siūlo ilgis 60-75 cm"]
["2.11.3.","Siūlo spalva - Dažytas"]
["2.11.4.","Adatos tipas - Apvali 3/8, 2 adatos"]
["2.11.5.","Adatos ilgis 9-10 mm"]
["2.12.","Sintetinis, monofilomentinis, nesirezorbuojantis polipropileno siūlas",36,"Vnt",null,null,null,null,"",""]
["2.12.1.","Siūlo storis USP- 7/0"]
["2.12.2.","Siūlo ilgis 60-75 cm"]
["2.12.3.","Siūlo spalva - Dažytas"]
["2.12.4.","Adatos tipas - Apvali 1/2, 2 adatos"]
["2.12.5.","Adatos ilgis 10-11 mm"]
["2.13.","Sintetinis, monofilomentinis, nesirezorbuojantis polipropileno siūlas",108,"Vnt",null,null,null,null,"",""]
["2.13.1.","Siūlo storis USP- 3/0"]
["2.13.2.","Siūlo ilgis 75-90 cm"]
["2.13.3.","Siūlo spalva - Dažytas"]
["2.13.4.","Adatos tipas - Apvali 1/2, 2 adatos"]
["2.13.5.","Adatos ilgis 25-26 mm"]
["2.14.","Sintetinis, monofilomentinis, nesirezorbuojantis polipropileno siūlas",108,"Vnt",null,null,null,null,"",""]
["2.14.1.","Siūlo storis USP- 5/0"]
["2.14.2.","Siūlo ilgis 75-90 cm"]
["2.14.3.","Siūlo spalva - Dažytas"]
["2.14.4.","Adatos tipas - Apvali 1/2, 2 adatos"]
["2.14.5.","Adatos ilgis 16-17 mm"]
["2.15.","Sintetinis, monofilomentinis, nesirezorbuojantis polipropileno siūlas",108,"Vnt",null,null,null,null,"",""]
["2.15.1.","Siūlo storis USP- 5/0"]
["2.15.2.","Siūlo ilgis 75-90 cm"]
["2.15.3.","Siūlo spalva - Dažytas"]
["2.15.4.","Adatos tipas - Apvali 3/8, 2 adatos"]
["2.15.5.","Adatos ilgis 12-13 mm"]
["2.16.","Sintetinis, monofilomentinis, nesirezorbuojantis polipropileno siūlas",108,"Vnt",null,null,null,null,"",""]
["2.16.1.","Siūlo storis USP- 6/0"]
["2.16.2.","Siūlo ilgis 75-90 cm"]
["2.16.3.","Siūlo spalva - Dažytas"]
["2.16.4.","Adatos tipas - Apvali 3/8, 2 adatos"]
["2.16.5.","Adatos ilgis 12-13 mm"]
["2.16.6.","Perkančioji organizacija prašo pateikti šios pirkimo dalies pavyzdį (ne mažiau keturis vienetus)"]
["2.17.","Sintetinis, monofilomentinis, nesirezorbuojantis polipropileno siūlas",108,"Vnt",null,null,null,null,"",""]
["2.17.1.","Siūlo storis USP- 6/0"]
["2.17.2.","Siūlo ilgis 60-75 cm"]
["2.17.3.","Siūlo spalva - Dažytas"]
["2.17.4.","Adatos tipas - Apvali pjaunančiu galu 3/8, 2 adatos"]
["2.17.5.","Adatos ilgis 12-13 mm"]
["2.18.","Sintetinis, monofilomentinis, nesirezorbuojantis polipropileno siūlas",108,"Vnt",null,null,null,null,"",""]
["2.18.1.","Siūlo storis USP- 5/0"]
["2.18.2.","Siūlo ilgis 75-90 cm"]
["2.18.3.","Siūlo spalva - Dažytas"]
["2.18.4.","Adatos tipas - Apvali su pjaunančiu galu 3/8, 2 adatos"]
["2.18.5.","Adatos ilgis 12-13 mm"]
["2.19.","Sintetinis, monofilomentinis, nesirezorbuojantis polipropileno siūlas",480,"Vnt",null,null,null,null,"",""]
["2.19.1.","Siūlo storis USP- 5/0"]
["2.19.2.","Siūlo ilgis 70-75 cm"]
["2.19.3.","Siūlo spalva - Dažytas"]
["2.19.4.","Adatos tipas - Pjaunanti 3/8"]
["2.19.5.","Adatos ilgis 12-13 mm"]
["2.20.","Sintetinis, monofilomentinis, nesirezorbuojantis polipropileno siūlas",108,"Vnt",null,null,null,null,"",""]
["2.20.1.","Siūlo storis USP- 5/0"]
["2.20.2.","Siūlo ilgis 75-90 cm"]
["2.20.3.","Siūlo spalva - Dažytas"]
["2.20.4.","Adatos tipas - Apvali su pjaunančiu galu 1/2, 2 adatos"]
["2.20.5.","Adatos ilgis 16-18 mm"]
["2.21.","Sintetinis, monofilomentinis, nesirezorbuojantis polipropileno siūlas",900,"Vnt",null,null,null,null,"",""]
["2.21.1.","Siūlo storis USP- 1"]
["2.21.2.","Siūlo ilgis 75-90 cm"]
["2.21.3.","Siūlo spalva - Dažytas"]
["2.21.4.","Adatos tipas - Apvali 1/2"]
["2.21.5.","Adatos ilgis 37-38 mm"]
["2.22.","Sintetinis, monofilomentinis, nesirezorbuojantis polipropileno siūlas",1200,"Vnt",null,null,null,null,"",""]
["2.22.1.","Siūlo storis USP- 0"]
["2.22.2.","Siūlo ilgis 70-75 cm"]
["2.22.3.","Siūlo spalva - Dažytas"]
["2.22.4.","Adatos tipas - Pjaunanti 3/8"]
["2.22.5.","Adatos ilgis 29-30 mm"]
["2.23.","Sintetinis, monofilomentinis, nesirezorbuojantis polipropileno siūlas",480,"Vnt",null,null,null,null,"",""]
["2.23.1.","Siūlo storis USP- 4/0"]
["2.23.2.","Siūlo ilgis 70-75 cm"]
["2.23.3.","Siūlo spalva - Dažytas"]
["2.23.4.","Adatos tipas - Pjaunanti 3/8"]
["2.23.5.","Adatos ilgis 23-24 mm"]
["2.24.","Sintetinis, monofilomentinis, nesirezorbuojantis polipropileno siūlas",2300,"Vnt",null,null,null,null,"",""]
["2.24.1.","Siūlo storis USP- 4/0"]
["2.24.2.","Siūlo ilgis 70-75 cm"]
["2.24.3.","Siūlo spalva - Dažytas"]
["2.24.4.","Adatos tipas - Pjaunanti 3/8"]
["2.24.5.","Adatos ilgis 19-20 mm"]
["2.24.6.","Perkančioji organizacija prašo pateikti šios pirkimo dalies pavyzdį (ne mažiau keturis vienetus)"]
["2.25.","Sintetinis, pintas, nesirezorbuojantis, poliesterio siūlas",400,"Vnt",null,null,null,null,"",""]
["2.25.1.","Siūlo storis USP- 2"]
["2.25.2.","Siūlo ilgis 70-75 cm"]
["2.25.3.","Siūlo spalva - Dažytas"]
["2.25.4.","Adatos tipas - Apvali 1/2"]
["2.25.5.","Adatos ilgis 39-40 mm"]
["2.26.","Sintetinis, pintas, nesirezorbuojantis, poliesterio siūlas",400,"Vnt",null,null,null,null,"",""]
["2.26.1.","Siūlo storis USP- 2"]
["2.26.2.","Siūlo ilgis 70-75 cm"]
["2.26.3.","Siūlo spalva - Dažytas"]
["2.26.4.","Adatos tipas - Apvali 1/2"]
["2.26.5.","Adatos ilgis 36-37 mm"]
["2.27.","Sintetinis, pintas, nesirezorbuojantis, poliesterio siūlas",400,"Vnt",null,null,null,null,"",""]
["2.27.1.","Siūlo storis USP- 1"]
["2.27.2.","Siūlo ilgis 75-90 cm"]
["2.27.3.","Siūlo spalva - Dažytas"]
["2.27.4.","Adatos tipas - Pjaunanti 1/2"]
["2.27.5.","Adatos ilgis 36-37 mm"]
["2.28.","Sintetinis, pintas, nesirezorbuojantis, poliesterio siūlas",400,"Vnt",null,null,null,null,"",""]
["2.28.1.","Siūlo storis USP- 1"]
["2.28.2.","Siūlo ilgis 70-75 cm"]
["2.28.3.","Siūlo spalva - Dažytas"]
["2.28.4.","Adatos tipas - Apvali 1/2"]
["2.28.5.","Adatos ilgis 36-37 mm"]
["2.29.","Sintetinis, pintas, nesirezorbuojantis, poliesterio siūlas",900,"Vnt",null,null,null,null,"",""]
["2.29.1.","Siūlo storis USP- 0"]
["2.29.2.","Siūlo ilgis 70-90 cm"]
["2.29.3.","Siūlo spalva - Dažytas"]
["2.29.4.","Adatos tipas - Pjaunanti 1/2"]
["2.29.5.","Adatos ilgis 37-40 mm"]
["2.30.","Sintetinis, pintas, nesirezorbuojantis, poliesterio siūlas",72,"Vnt",null,null,null,null,"",""]
["2.30.1.","Siūlo storis USP- 0"]
["2.30.2.","Siūlo ilgis 70-90 cm"]
["2.30.3.","Siūlo spalva - Dažytas"]
["2.30.4.","Adatos tipas - Apvali 1/2"]
["2.30.5.","Adatos ilgis 36-37 mm"]
["2.31.","Sintetinis, pintas, nesirezorbuojantis, poliesterio siūlas",400,"Vnt",null,null,null,null,"",""]
["2.31.1.","Siūlo storis USP- 2/0"]
["2.31.2.","Siūlo ilgis 70-75 cm"]
["2.31.3.","Siūlo spalva - Dažytas"]
["2.31.4.","Adatos tipas - Apvali 1/2"]
["2.31.5.","Adatos ilgis 25-26 mm"]
["2.32.","Sintetinis, pintas, nesirezorbuojantis, poliesterio siūlas",400,"Vnt",null,null,null,null,"",""]
["2.32.1.","Siūlo storis USP- 2/0"]
["2.32.2.","Siūlo ilgis 70-75 cm"]
["2.32.3.","Siūlo spalva - Dažytas"]
["2.32.4.","Adatos tipas - Apvali 1/2"]
["2.32.5.","Adatos ilgis 29-30 mm"]
["2.33.","Sintetinis, pintas, nesirezorbuojantis, poliesterio siūlas",2800,"Vnt",null,null,null,null,"",""]
["2.33.1.","Siūlo storis USP- 2/0"]
["2.33.2.","Siūlo ilgis 75-90 cm"]
["2.33.3.","Siūlo spalva - Dažytas"]
["2.33.4.","Adatos tipas - Pjaunanti 3/8"]
["2.33.5.","Adatos ilgis 26-30 mm"]
["2.34.","Sintetinis, pintas, nesirezorbuojantis, poliesterio siūlas",3200,"Vnt",null,null,null,null,"",""]
["2.34.1.","Siūlo storis USP- 3/0"]
["2.34.2.","Siūlo ilgis 70-75 cm"]
["2.34.3.","Siūlo spalva - Dažytas"]
["2.34.4.","Adatos tipas - Pjaunanti 3/8"]
["2.34.5.","Adatos ilgis 24-26 mm"]
["2.35.","Sintetinis, pintas, nesirezorbuojantis, poliesterio siūlas",300,"Vnt",null,null,null,null,"",""]
["2.35.1.","Siūlo storis USP- 3/0"]
["2.35.2.","Siūlo ilgis 70-75 cm"]
["2.35.3.","Siūlo spalva - Dažytas"]
["2.35.4.","Adatos tipas - Apvali 1/2"]
["2.35.5.","Adatos ilgis 25-26 mm"]
["2.36.","Sintetinis, pintas, nesirezorbuojantis, poliesterio siūlas",300,"Vnt",null,null,null,null,"",""]
["2.36.1.","Siūlo storis USP- 3/0"]
["2.36.2.","Siūlo ilgis 70-75 cm"]
["2.36.3.","Siūlo spalva - Dažytas"]
["2.36.4.","Adatos tipas - Apvali 1/2"]
["2.36.5.","Adatos ilgis 29-30 mm"]
["2.37.","Sintetinis, pintas, nesirezorbuojantis, poliesterio siūlas",300,"Vnt",null,null,null,null,"",""]
["2.37.1.","Siūlo storis USP- 0"]
["2.37.2.","Siūlo ilgis 70-75 cm"]
["2.37.3.","Siūlo spalva - Dažytas"]
["2.37.4.","Adatos tipas - Apvali 1/2"]
["2.37.5.","Adatos ilgis 48-49 mm"]
["2.38.","Sintetinis, pintas, nesirezorbuojantis, poliesterio siūlas",300,"Vnt",null,null,null,null,"",""]
["2.38.1.","Siūlo storis USP- 2"]
["2.38.2.","Siūlo ilgis 70-75 cm"]
["2.38.3.","Siūlo spalva - Dažytas"]
["2.38.4.","Adatos tipas - Pjaunanti 1/2"]
["2.38.5.","Adatos ilgis 39-40 mm"]
["2.39.","Nesirezorbuojantis, monofilamentinis, sintetinis Nylonas (poliamido pluoštas)",3000,"Vnt",null,null,null,null,"",""]
["2.39.1.","Siūlo storis USP- 0"]
["2.39.2.","Siūlo ilgis 70-75 cm"]
["2.39.3.","Siūlo spalva - Dažytas"]
["2.39.4.","Adatos tipas - Pjaunanti 3/8"]
["2.39.5.","Adatos ilgis 36-37 mm"]
["2.40.","Nesirezorbuojantis, monofilamentinis, sintetinis Nylonas (poliamido pluoštas)",3000,"Vnt",null,null,null,null,"",""]
["2.40.1.","Siūlo storis USP- 2/0"]
["2.40.2.","Siūlo ilgis 70-75 cm"]
["2.40.3.","Siūlo spalva - Dažytas"]
["2.40.4.","Adatos tipas - Pjaunanti 3/8"]
["2.40.5.","Adatos ilgis 24-26 mm"]
["2.41.","Nesirezorbuojantis, monofilamentinis, sintetinis Nylonas (poliamido pluoštas)",4200,"Vnt",null,null,null,null,"",""]
["2.41.1.","Siūlo storis USP- 2/0"]
["2.41.2.","Siūlo ilgis 70-75 cm"]
["2.41.3.","Siūlo spalva - Dažytas"]
["2.41.4.","Adatos tipas - Pjaunanti 3/8"]
["2.41.5.","Adatos ilgis 29-30 mm"]
["2.41.6.","Perkančioji organizacija prašo pateikti šios pirkimo dalies pavyzdį (ne mažiau keturis vienetus)"]
["2.42.","Nesirezorbuojantis, monofilamentinis, sintetinis Nylonas (poliamido pluoštas)",3000,"Vnt",null,null,null,null,"",""]
["2.42.1.","Siūlo storis USP- 3/0"]
["2.42.2.","Siūlo ilgis 70-75 cm"]
["2.42.3.","Siūlo spalva - Dažytas"]
["2.42.4.","Adatos tipas - Pjaunanti 3/8"]
["2.42.5.","Adatos ilgis 18-19 mm"]
["2.43.","Nesirezorbuojantis, monofilamentinis, sintetinis Nylonas (poliamido pluoštas)",7200,"Vnt",null,null,null,null,"",""]
["2.43.1.","Siūlo storis USP- 3/0"]
["2.43.2.","Siūlo ilgis 70-75 cm"]
["2.43.3.","Siūlo spalva - Dažytas"]
["2.43.4.","Adatos tipas - Pjaunanti 3/8"]
["2.43.5.","Adatos ilgis 24-26 mm"]
["2.44.","Nesirezorbuojantis, monofilamentinis, sintetinis Nylonas (poliamido pluoštas)",3000,"Vnt",null,null,null,null,"",""]
["2.44.1.","Siūlo storis USP- 3/0"]
["2.44.2.","Siūlo ilgis 70-75 cm"]
["2.44.3.","Siūlo spalva - Dažytas"]
["2.44.4.","Adatos tipas - Pjaunanti 3/8"]
["2.44.5.","Adatos ilgis 29-30 mm"]
["2.45.","Nesirezorbuojantis, monofilamentinis, sintetinis Nylonas (poliamido pluoštas)",360,"Vnt",null,null,null,null,"",""]
["2.45.1.","Siūlo storis USP- 4/0"]
["2.45.2.","Siūlo ilgis 70-75 cm"]
["2.45.3.","Siūlo spalva - Dažytas"]
["2.45.4.","Adatos tipas - Pjaunanti 3/8"]
["2.45.5.","Adatos ilgis 19-20 mm"]
["2.46.","Nesirezorbuojantis, monofilamentinis, sintetinis Nylonas (poliamido pluoštas)",360,"Vnt",null,null,null,null,"",""]
["2.46.1.","Siūlo storis USP- 5/0"]
["2.46.2.","Siūlo ilgis 70-75 cm"]
["2.46.3.","Siūlo spalva - Dažytas"]
["2.46.4.","Adatos tipas - Pjaunanti 3/8"]
["2.46.5.","Adatos ilgis 19-20 mm"]
["2.47.","Nesirezorbuojantis, monofilamentinis, sintetinis Nylonas (poliamido pluoštas)",240,"Vnt",null,null,null,null,"",""]
["2.47.1.","Siūlo storis USP- 2/0"]
["2.47.2.","Siūlo ilgis 70-75 cm"]
["2.47.3.","Siūlo spalva - Dažytas"]
["2.47.4.","Adatos tipas - Pjaunanti tiesi"]
["2.47.5.","Adatos ilgis 59-60 mm"]
["2.48.","Nesirezorbuojantis, monofilamentinis, sintetinis Nylonas (poliamido pluoštas)",240,"Vnt",null,null,null,null,"",""]
["2.48.1.","Siūlo storis USP- 1"]
["2.48.2.","Siūlo ilgis 70-75 cm"]
["2.48.3.","Siūlo spalva - Dažytas"]
["2.48.4.","Adatos tipas - Pjaunanti 3/8"]
["2.48.5.","Adatos ilgis 77-78 mm"]
["2.49.","Sintetinis, monofilomentinis, nesirezorbuojantis poliuretaninis siūlas",120,"Vnt",null,null,null,null,"",""]
["2.49.1.","Siūlo storis USP- 3/0"]
["2.49.2.","Siūlo ilgis 75 cm"]
["2.49.3.","Siūlo spalva - Dažytas"]
["2.49.4.","Adatos tipas - Pjaunanti 3/8"]
["2.49.5.","Adatos ilgis 26-27 mm"]
["2.50.","Sintetinis, monofilomentinis, nesirezorbuojantis poliuretaninis siūlas",120,"Vnt",null,null,null,null,"",""]
["2.50.1.","Siūlo storis USP- 3/0"]
["2.50.2.","Siūlo ilgis 75 cm"]
["2.50.3.","Siūlo spalva - Dažytas"]
["2.50.4.","Adatos tipas - Pjaunanti 3/8"]
["2.50.5.","Adatos ilgis 18-19 mm"]
["2.51.","Sintetinis, monofilomentinis, nesirezorbuojantis poliuretaninis siūlas",120,"Vnt",null,null,null,null,"",""]
["2.51.1.","Siūlo storis USP- 2/0"]
["2.51.2.","Siūlo ilgis 75 cm"]
["2.51.3.","Siūlo spalva - Dažytas"]
["2.51.4.","Adatos tipas - Pjaunanti 3/8"]
["2.51.5.","Adatos ilgis 26-27 mm"]
["2.51.6.","Perkančioji organizacija prašo pateikti šios pirkimo dalies pavyzdį (ne mažiau keturis vienetus)"]
["2.52.","Sintetinis, monofilomentinis, nesirezorbuojantis poliuretaninis siūlas",120,"Vnt",null,null,null,null,"",""]
["2.52.1.","Siūlo storis USP- 2/0"]
["2.52.2.","Siūlo ilgis 75 cm"]
["2.52.3.","Siūlo spalva - Dažytas"]
["2.52.4.","Adatos tipas - Pjaunanti 3/8"]
["2.52.5.","Adatos ilgis 29-30 mm"]
[null,"","","","Suma be PVM",null,"","","","","",""]
[null,"","","","PVM suma",null,"","","","","",""]
[null,"","","","Suma su PVM",null,"","","","","",""]
[]
["3.","Tinkleliai išvaržų plastikai"]
["3.1.","Sintetinis, monofilomentinis, sterilus, nesirezorbuojantis pagamintas iš poliesterio arba lygiavertės medžiagos, didelių porų",100,"Vnt",24,{"$f":"E841*100","v":2400},"Yavo, MS15-15PP",null,"",""]
["3.1.1.","Porų dydis - 1,5x1,5 mm"]
["3.1.2.","Svoris g/m² - 46"]
["3.1.3.","Ilgis - 30 cm"]
["3.1.4.","Plotis - 30 cm"]
["3.1.5.","Perkančioji organizacija prašo pateikti šios pirkimo dalies pavyzdį"]
["3.2.","Sintetinis, monofilomentinis, sterilus, nesirezorbuojantis pagamintas iš poliesterio arba lygiavertės medžiagos, didelių porų",100,"Vnt",16,{"$f":"E847*100","v":1600},"Yavo, MS30-15PP",null,"",""]
["3.2.1.","Porų dydis - 1,5x1,5 mm"]
["3.2.2.","Svoris g/m² - 46"]
["3.2.3.","Ilgis - 30 cm"]
["3.2.4.","Plotis - 15 cm"]
["3.3.","Sintetinis, monofilomentinis, sterilus, nesirezorbuojantis pagamintas iš poliesterio arba lygiavertės medžaigos, didelių porų",100,"Vnt",12,{"$f":"E852*100","v":1200},"Yavo, MS15-10PP",null,"",""]
["3.3.1.","Porų dydis - 1,5x1,5 mm"]
["3.3.2.","Svoris g/m² - 46"]
["3.3.3.","Ilgis - 15 cm"]
["3.3.4.","Plotis - 10 cm"]
["3.4.","Sintetinis, monofilomentinis, sterilus, nesirezorbuojantis pagamintas iš poliesterio arba lygiavertės medžiagos, didelių porų",500,"Vnt",7,{"$f":"E857*500","v":3500},"Yavo, MS11-6PP",null,"",""]
["3.4.1.","Porų dydis - 1,5x1,5 mm"]
["3.4.2.","Svoris g/m² - 46"]
["3.4.3.","Ilgis - 11 cm"]
["3.4.4.","Plotis - 6 cm"]
["3.4.5.","Perkančioji organizacija prašo pateikti šios pirkimo dalies pavyzdį"]
[null,"","","","Suma be PVM",{"$f":"SUM(F841,F847,F852,F857)","v":8700},"","","","","",""]
[null,"","","","PVM suma",{"$f":"F865-F863","v":435},"","","","","",""]
[null,"","","","Suma su PVM",{"$f":"F863*1.05","v":9135},"","","","","",""]
[]
["4.","Tinkleliai išvaržų plastikai"]
["4.1.","Pusiau besirezorbuojantys, daugiasluoksniai, tinka palikti pilvo ertmėje, sintetiniai, iš poliesterio, dengti kolagenu, didelių porų, mažo svorio su centriniu žymekliu",10,"Vnt",null,null,null,null,"",""]
["4.1.1.","Porų dydis - 1,5x1,5 mm"]
["4.1.2.","Svoris g/m² - 46"]
["4.1.3.","Ilgis - 15 cm"]
["4.1.4.","Plotis - 10 cm"]
["4.2.","Pusiau besirezorbuojantys, daugiasluoksniai, tinka palikti pilvo ertmėje, sintetiniai, iš poliesterio, dengti kolagenu, didelių porų, mažo svorio su centriniu žymekliu",10,"Vnt",null,null,null,null,"",""]
["4.2.1.","Porų dydis - 1,5x1,5 mm"]
["4.2.2.","Svoris g/m² - 46"]
["4.2.3.","Ilgis - 20 cm"]
["4.2.4.","Plotis - 15 cm"]
["4.3.","Pusiau besirezorbuojantys, daugiasluoksniai, tinka palikti pilvo ertmėje, sintetiniai, iš poliesterio, dengti kolagenu, didelių porų, mažo svorio su centriniu žymekliu",10,"Vnt",null,null,null,null,"",""]
["4.3.1.","Porų dydis - 1,5x1,5 mm"]
["4.3.2.","Svoris g/m² - 46"]
["4.3.3.","Ilgis - 25 cm"]
["4.3.4.","Plotis - 15 cm"]
["4.4.","Pusiau besirezorbuojantys, daugiasluoksniai, tinka palikti pilvo ertmėje, sintetiniai, iš poliesterio, dengti kolagenu, didelių porų, mažo svorio su centriniu žymekliu",10,"Vnt",null,null,null,null,"",""]
["4.4.1.","Porų dydis - 1,5x1,5 mm"]
["4.4.2.","Svoris g/m² - 46"]
["4.4.3.","Ilgis - 34 cm"]
["4.4.4.","Plotis - 20 cm"]
[null,"","","","Suma be PVM",null,"","","","","",""]
[null,"","","","PVM suma",null,"","","","","",""]
[null,"","","","Suma su PVM",null,"","","","","",""]
[]
["5.","Tinkleliai išvaržų plastikai"]
["5.1.","Sintetinis, monofilamentinis, sterilus, nesirezorbuojantis pagamintas iš polivinilidenflorido",40,"Vnt",44.9,{"$f":"E893*40","v":1796},"FEG Textiltechnik; PV101015","Šiuos tinklelius ligoninė jau naudoja, todėl nėra tikslinga pateikti pavyzdžius","",""]
["5.1.1.","Poringumas - ne mažiau 63% poringumo"]
["5.1.2.","Ilgis - 15 cm"]
["5.1.3.","Plotis - 10 cm"]
["5.1.4.","Perkančioji organizacija prašo pateikti šios pirkimo dalies pavyzdį"]
["5.2.","Sintetinis, monofilamentinis, sterilus, nesirezorbuojantis pagamintas iš polivinilidenflorido",100,"Vnt",82,{"$f":"E898*100","v":8200},"FEG Textiltechnik; PV131015F3","Šiuos tinklelius ligoninė jau naudoja, todėl nėra tikslinga pateikti pavyzdžius","",""]
["5.2.1.","Poringumas - Išgaubtas su žaliomis  orientavimosi linijomis, tinkamas abiem anatominėm  pusėm"]
["5.2.2.","Ilgis - 15 cm"]
["5.2.3.","Plotis - 10 cm"]
["5.2.4.","Perkančioji organizacija prašo pateikti šios pirkimo dalies pavyzdį"]
[null,"","","","Suma be PVM",{"$f":"SUM(F893,F898)","v":9996},"","","","","",""]
[null,"","","","PVM suma",{"$f":"F905-F903","v":499.80000000000109},"","","","","",""]
[null,"","","","Suma su PVM",{"$f":"F903*1.05","v":10495.800000000001},"","","","","",""]
[]
["6.","Dvikomponentiniai tinkleliai išvaržų plastikai"]
["6.1.","Sterilus, nesirezorbuojantis pagamintas iš 12% monofilamentinio polipropileno ir 88% polivinilidenflorido, efektyvus poringumas ne mažiau 41%. Nesudaro sąaugų",15,"Vnt",331.08,{"$f":"E908*15","v":4966.2},"FEG Techtiltechnik, IPO71515","Šiuos tinklelius ligoninė jau naudoja, todėl nėra tikslinga pateikti pavyzdžius","",""]
["6.1.1.","Poringumas - tinklelis"]
["6.1.2.","Ilgis - 15 +/-1 cm"]
["6.1.3.","Plotis - 15 +/-1 cm"]
["6.2.","Sterilus, nesirezorbuojantis pagamintas iš 12% monofilamentinio polipropileno ir 88% polivinilidenflorido, efektyvus poringumas ne mažiau 41%. Nesudaro sąaugų",15,"Vnt",364.92,{"$f":"E912*15","v":5473.8},"FEG Techtiltechnik, IPO71520","Šiuos tinklelius ligoninė jau naudoja, todėl nėra tikslinga pateikti pavyzdžius","",""]
["6.2.1.","Poringumas - tinklelis"]
["6.2.2.","Ilgis - 15 +/-1 cm"]
["6.2.3.","Plotis - 20 +/-1 cm"]
["6.3.","Sterilus, nesirezorbuojantis pagamintas iš 12% monofilamentinio polipropileno ir 88% polivinilidenflorido, efektyvus poringumas ne mažiau 41%. Nesudaro sąaugų",15,"Vnt",512.33000000000004,{"$f":"E916*15","v":7684.9500000000007},"FEG Textiltechnik, IPO72030","Šiuos tinklelius ligoninė jau naudoja, todėl nėra tikslinga pateikti pavyzdžius","",""]
["6.3.1.","Poringumas - tinklelis"]
["6.3.2.","Ilgis - 20 +/-1 cm"]
["6.3.3.","Plotis - 30 +/-1 cm"]
[null,"","","","Suma be PVM",{"$f":"SUM(F916,F912,F908)","v":18124.95},"","","","","",""]
[null,"","","","PVM suma",{"$f":"F922-F920","v":906.24750000000131},"","","","","",""]
[null,"","","","Suma su PVM",{"$f":"F920*1.05","v":19031.197500000002},"","","","","",""]
[]
["7.","Tinklelis bambų išvaržų plastikai"]
["7.1.","Sintetinis, pagamintas iš polipropileno ir besirezorbuojančios oksiduotos regeneruotos celiuliozės. Galima palikti pilvo ertmėje",90,"Vnt",null,null,null,null,"",""]
["7.1.1.","Porų dydis - 3-4 mm"]
["7.1.2.","Forma - Apvalus"]
["7.1.3.","Ilgis - 6,6 cm"]
["7.1.4.","Plotis - 6,6 cm"]
["7.1.5.","Perkančioji organizacija prašo pateikti šios pirkimo dalies pavyzdį"]
[null,"","","","Suma be PVM",null,"","","","","",""]
[null,"","","","PVM suma",null,"","","","","",""]
[null,"","","","Suma su PVM",null,"","","","","",""]
[]
["8.","Ligatūrinė endoskopinė kilpa su pravedėju"]
["8.1.","Ligatūrinė endoskopinė kilpa su pravedėju. Pagaminta iš Polidioksanono, rezorbcijos laikas 180-210d",500,"Vnt",null,null,null,null,"",""]
["8.1.1.","Siūlo storis USP - 0"]
["8.1.2.","Siūlo ilgis - 50-55 cm"]
["8.1.3.","Siūlo spalva - Dažytas"]
["8.1.4.","Adatos tipas - Ligatūrinė endoskopinė kilpa, su pravedėju"]
["8.1.5.","Perkančioji organizacija prašo pateikti šios pirkimo dalies pavyzdį"]
[null,"","","","Suma be PVM",null,"","","","","",""]
[null,"","","","PVM suma",null,"","","","","",""]
[null,"","","","Suma su PVM",null,"","","","","",""]
[]
["9.","Besirezorbuojantis, mazgo nereikalaujantis, ekscentriškai dantytas polidioksanonas"]
["9.1.","Besirezorbuojantis, mazgo nereikalaujantis, ekscentriškai dantytas polidioksanonas, turintis po adatą galuose. Pilna rezorbcija 180-210 parų. Procentinis stiprumo išlaikymas 80% po 2 savaičių,  80% po 4 savaičių,  40% po 6 savaičių",36,"Vnt",null,null,null,null,"",""]
["9.1.1.","Siūlo storis USP - 2/0"]
["9.1.2.","Siūlo ilgis - 36x36 cm"]
["9.1.3.","Siūlo spalva - Dažytas"]
["9.1.4.","Adatos tipas - Apvali 1/2"]
["9.1.5.","Adatos ilgis - 30-36 mm"]
["9.2.","Besirezorbuojantis, mazgo nereikalaujantis, ekscentriškai dantytas polidioksanonas, turintis po adatą galuose. Pilna rezorbcija 180-210 parų. Procentinis stiprumo išlaikymas 80% po 2 savaičių,  80% po 4 savaičių,  40% po 6 savaičių",36,"Vnt",null,null,null,null,"",""]
["9.2.1.","Siūlo storis USP - 2/0"]
["9.2.2.","Siūlo ilgis - 10x10 cm"]
["9.2.3.","Siūlo spalva - Dažytas"]
["9.2.4.","Adatos tipas - Apvali 1/2"]
["9.2.5.","Adatos ilgis - 22-26 mm"]
["9.2.6.","Perkančioji organizacija prašo pateikti šios pirkimo dalies pavyzdį"]
[null,"","","","Suma be PVM",null,"","","","","",""]
[null,"","","","PVM suma",null,"","","","","",""]
[null,"","","","Suma su PVM",null,"","","","","",""]
[]
["10.","Besirezorbuojantis, mazgo nereikalaujantis, ekscentriškai dantytas glikolido ir kaprolaktono kopolimero chirurginis siūlas"]
["10.1.","Besirezorbuojantis, mazgo nereikalaujantis, ekscentriškai dantytas glikolido ir kaprolaktono kopolimero. Pilna rezorbcija 90-120 parų. Procentinis stiprumo išlaikymas 60% po 1 savaitės,  27% po 2 savaičių,  40% po 6 savaičių. Viename siūlo gale adata, kitame kilpa",36,"Vnt",null,null,null,null,"",""]
["10.1.1.","Siūlo storis USP - 3/0"]
["10.1.2.","Siūlo ilgis - 30 cm"]
["10.1.3.","Siūlo spalva - Dažytas"]
["10.1.4.","Adatos tipas - Pjaunanti 3/8"]
["10.1.5.","Adatos ilgis - 24-26 mm"]
["10.2.","Besirezorbuojantis, mazgo nereikalaujantis, ekscentriškai dantytas glikolido ir kaprolaktono kopolimero. Pilna rezorbcija 90-120 parų. Procentinis stiprumo išlaikymas 60% po 1 savaitės,  27% po 2 savaičių,  40% po 6 savaičių. Viename siūlo gale adata, kitame kilpa",36,"Vnt",null,null,null,null,"",""]
["10.2.1.","Siūlo storis USP - 3/0"]
["10.2.2.","Siūlo ilgis - 30 cm"]
["10.2.3.","Siūlo spalva - Dažytas"]
["10.2.4.","Adatos tipas- Apvali 1/2"]
["10.2.5.","Adatos ilgis - 24-26 mm"]
[null,"","","","Suma be PVM",null,"","","","","",""]
[null,"","","","PVM suma",null,"","","","","",""]
[null,"","","","Suma su PVM",null,"","","","","",""]
[]
["11.","Besirezorbuojantis, sintetinis, pintas siūlas, pagamintas iš poliglaktino"]
["11.1.","Besirezorbuojantis, sintetinis, pintas siūlas, pagamintas iš poliglaktino, dengtas. Stiprumą išlaiko 75% po 14 d., 50% po 21d., 25% po 28d.",120,"Vnt",null,null,null,null,"",""]
["11.1.1.","Siūlo storis USP - 6/0"]
["11.1.2.","Siūlo ilgis 30-35 cm"]
["11.1.3.","Siūlo spalva - Dažytas"]
["11.1.4.","Adatos tipas - Juoda, apvali su pjaunančiu galu 5/8"]
["11.1.5.","Adatos ilgis - 10-12 mm"]
[null,"","","","Suma be PVM",null,"","","","","",""]
[null,"","","","PVM suma",null,"","","","","",""]
[null,"","","","Suma su PVM",null,"","","","","",""]
[]
["12.","Išgaubtas polipropileno 3 D tinklelis laparoskopinei kirkšninių išvaržų plastikai"]
["12.1.","Išgaubtas polipropileno 3 D tinklelis laparoskopinei kirkšninių išvaržų plastikai",240,"Vnt",null,null,null,null,"",""]
["12.1.1.","Ilgis - 10 ±0,5 cm"]
["12.1.2.","Plotis - 15±1,0 cm"]
[null,"","","","Suma be PVM",null,"","","","","",""]
[null,"","","","PVM suma",null,"","","","","",""]
[null,"","","","Suma su PVM",null,"","","","","",""]
[]
["13.","Ligatūrinės kabutės"]
["13.1.","Ligatūrinės kabutės",9600,"Vnt",0.31,{"$f":"E1001*9600","v":2976},"Grena Ltd; 0301-01ML","Šiuos kabutes ligoninė jau naudoja, todėl nėra tikslinga pateikti pavyzdžius","",""]
["13.1.1.","Sterilios,pagamintos iš titano, vienkartinės"]
["13.1.2.","Širdies formos viela, rombo formos kabutės geometrija"]
["13.1.3.","Išilginis griovelis per visą kabutės ilgį, skersiniai grioveliai kabutės stabilumui užtikrinti"]
["13.1.4.","Supakuotos po 6 vnt. kasetėje, ML dydžio, tinkančios „HORIZON WECK“ klipatoriui"]
["13.1.5.","Perkančioji organizacija prašo pateikti šios pirkimo dalies pavyzdį"]
["13.2.","Ligatūrinės kabutės",2400,"Vnt",0.3,{"$f":"E1007*2400","v":720},"Grena Ltd; 0301-01M","Šiuos kabutes ligoninė jau naudoja, todėl nėra tikslinga pateikti pavyzdžius","",""]
["13.2.1.","Sterilios,pagamintos iš titano, vienkartinės"]
["13.2.2.","Širdies formos viela, rombo formos kabutės geometrija"]
["13.2.3.","Išilginis griovelis per visą kabutės ilgį, skersiniai grioveliai kabutės stabilumui užtikrinti"]
["13.2.4.","Supakuotos po 6 vnt. kasetėje, M dydžio, tinkančios „HORIZON WECK“ klipatoriui"]
["13.3.","Ligatūrinės kabutės",510,"Vnt",1.35,{"$f":"E1012*510","v":688.5},"Grena Ltd; 0301-03XL","Šiuos kabutes ligoninė jau naudoja, todėl nėra tikslinga pateikti pavyzdžius","",""]
["13.3.1.","Polimerinės sterilios, nesirezorbuojančios"]
["13.3.2.","Galimybė užspausti 7-16mm audinius, integruoti dantukai neleidžiantys kabutei nuslysti nuo kraujagyslės"]
["13.3.3.","Kabutė fiksuojama instrumente kilpelių pagalba, kabutė turi užsirakinimo mechanizmą"]
["13.3.4.","Supakuotos po 6 vnt kasetė, XL dydžio, tinkančios „WECK HEM-O-LOK\" klipatoriui   Ø 10mm"]
["13.4.","Ligatūrinės kabutės",420,"Vnt",1.9,{"$f":"E1017*420","v":798},"Grena Ltd; 0301-03ML","Šiuos kabutes ligoninė jau naudoja, todėl nėra tikslinga pateikti pavyzdžius","",""]
["13.4.1.","Polimerinės sterilios, nesirezorbuojančios"]
["13.4.2.","Galimybė užspausti 3-10mm  audinius, integruoti dantukai neleidžiantys kabutei nuslysti nuo kraujagyslės"]
["13.4.3.","Kabutė fiksuojama instrumente  kilpelių pagalba, kabutė turi užsirakinimo mechanizmą"]
["13.4.4.","Supakuotos po 6 vnt kasetė, ML dydžio, tinkančios „WECK HEM-O-LOK“ klipatoriui   Ø 5mm"]
["13.5.","Automatinis, vienkartinis polimerinių kabučių aplikatorius",20,"Vnt",149.9,{"$f":"E1022*20","v":2998},"Grena Ltd. 0301-04MLE","Šiuos aplikaotorius ligoninė jau naudoja, todėl nėra tikslinga pateikti pavyzdžius","",""]
["13.5.1.","Tiesus, užtaisytas 15vnt M/L dydžio polimerinių kabučių"]
["13.5.2.","Darbinis ilgis 33±1cm naudojamas su 5mm trokaru"]
["13.5.3.","Skirta užspausti 3-10mm kraujagysles"]
["13.6.","Kraujagyslių kabutės titaninės ML dydžio",1000,"Vnt",0.31,{"$f":"E1026*1000","v":310},"Grena Ltd. 0301-06ML10","Šiuos kabutes ligoninė jau naudoja, todėl nėra tikslinga pateikti pavyzdžius","",""]
["13.6.1.","Pagamintos iš  širdies formos titano vielos: rombo (ševrono) formos"]
["13.6.2.","Kabutė turi išilginį ir skersinius griovelius"]
["13.6.3.","Kasetė gali būti su limpančiu arba nelimpančiu pagrindu, easy-load“ kasetės sistema"]
["13.6.4.","Kasetėje 10 kabučių"]
[null,"","","","Suma be PVM",{"$f":"SUM(F1026,F1022,F1017,F1012,F1007,F1001)","v":8490.5},"","","","","",""]
[null,"","","","PVM suma",{"$f":"F1033-F1031","v":424.52499999999964},"","","","","",""]
[null,"","","","Suma su PVM",{"$f":"F1031*1.05","v":8915.0249999999996},"","","","","",""]
[]
["14.","Antibakteriniai chirurginiai siūlai"]
["14.1.","Vidutinės trukmės rezorbcijos sintetiniai polifilamentiniai  antibakteriniai poliglaktino darinių siūlai",120,"Vnt",null,null,null,null,"",""]
["14.1.1.","Siūlo storis USP - 6/0"]
["14.1.2.","Siūlo ilgis 70-75 cm"]
["14.1.3.","Siūlo spalva - Bespalvis"]
["14.1.4.","Adatos tipas - Pjaunanti 3/8"]
["14.1.5.","Adatos ilgis 19-20 mm"]
["14.2.","Vidutinės trukmės rezorbcijos sintetiniai polifilamentiniai  antibakteriniai poliglaktino darinių siūlai",120,"Vnt",null,null,null,null,"",""]
["14.2.1.","Siūlo storis USP - 5/0"]
["14.2.2.","Siūlo ilgis 70-75 cm"]
["14.2.3.","Siūlo spalva - Bespalvis"]
["14.2.4.","Adatos tipas - Pjaunanti 3/8"]
["14.2.5.","Adatos ilgis 19-20 mm"]
["14.3.","Vidutinės trukmės rezorbcijos sintetiniai polifilamentiniai  antibakteriniai poliglaktino darinių siūlai",180,"Vnt",null,null,null,null,"",""]
["14.3.1.","Siūlo storis USP - 4/0"]
["14.3.2.","Siūlo ilgis 45-50 cm"]
["14.3.3.","Siūlo spalva - Bespalvis"]
["14.3.4.","Adatos tipas - Pjaunanti 3/8"]
["14.3.5.","Adatos ilgis 13-14 mm"]
["14.4.","Vidutinės trukmės rezorbcijos sintetiniai polifilamentiniai  antibakteriniai poliglaktino darinių siūlai",180,"Vnt",null,null,null,null,"",""]
["14.4.1.","Siūlo storis USP - 0"]
["14.4.2.","Siūlo ilgis 70-75 cm"]
["14.4.3.","Siūlo spalva - Dažytas"]
["14.4.4.","Adatos tipas - Apvali 1/2"]
["14.4.5.","Adatos ilgis 30-31 mm"]
["14.5.","Vidutinės trukmės rezorbcijos sintetiniai monofilamentiniai antibakteriniai poliglekaprono siūlai",240,"Vnt",null,null,null,null,"",""]
["14.5.1.","Siūlo storis USP - 0"]
["14.5.2.","Siūlo ilgis 70-90 cm"]
["14.5.3.","Siūlo spalva - Dažytas"]
["14.5.4.","Adatos tipas - Apvali 1/2"]
["14.5.5.","Adatos ilgis 39-40 mm"]
["14.6.","Vidutinės trukmės rezorbcijos sintetiniai monofilamentiniai antibakteriniai poliglekaprono siūlai",240,"Vnt",null,null,null,null,"",""]
["14.6.1.","Siūlo storis USP - 2/0"]
["14.6.2.","Siūlo ilgis 70-75 cm"]
["14.6.3.","Siūlo spalva - Dažytas"]
["14.6.4.","Adatos tipas - Apvali 1/2"]
["14.6.5.","Adatos ilgis 26-27 mm"]
["14.7.","Vidutinės trukmės rezorbcijos sintetiniai monofilamentiniai antibakteriniai poliglekaprono siūlai",240,"Vnt",null,null,null,null,"",""]
["14.7.1.","Siūlo storis USP - 3/0"]
["14.7.2.","Siūlo ilgis 70-75 cm"]
["14.7.3.","Siūlo spalva - Dažytas"]
["14.7.4.","Adatos tipas - Apvali 1/2"]
["14.7.5.","Adatos ilgis 17-19 mm"]
["14.8.","Ilgos  trukmės rezorbcijos sintetiniai monofilamentiniai  antibakteriniai polidioksanono siūlai",120,"Vnt",null,null,null,null,"",""]
["14.8.1.","Siūlo storis USP - 0"]
["14.8.2.","Siūlo ilgis  - 150Kilpa"]
["14.8.3.","Siūlo spalva - Dažytas"]
["14.8.4.","Adatos tipas - Apvali 1/2"]
["14.8.5.","Adatos ilgis 40-41 mm"]
["14.9.","Ilgos  trukmės rezorbcijos sintetiniai monofilamentiniai  antibakteriniai polidioksanono siūlai",72,"Vnt",null,null,null,null,"",""]
["14.9.1.","Siūlo storis USP - 5/0"]
["14.9.2.","Siūlo ilgis 70-75 cm"]
["14.9.3.","Siūlo spalva - Dažytas"]
["14.9.4.","Adatos tipas - Apvali 1/2"]
["14.9.5.","Adatos ilgis 17-19 mm"]
["14.10.","Ilgos  trukmės rezorbcijos sintetiniai monofilamentiniai  antibakteriniai polidioksanono siūlai",120,"Vnt",null,null,null,null,"",""]
["14.10.1.","Siūlo storis USP - 5/0"]
["14.10.2.","Siūlo ilgis 45 cm"]
["14.10.3.","Siūlo spalva - Nedažytas"]
["14.10.4.","Adatos tipas - Pjaunanti 3/8"]
["14.10.5.","Adatos ilgis 19-20 mm"]
["14.11.","Ilgos  trukmės rezorbcijos sintetiniai monofilamentiniai  antibakteriniai polidioksanono siūlai",120,"Vnt",null,null,null,null,"",""]
["14.11.1.","Siūlo storis USP - 4/0"]
["14.11.2.","Siūlo ilgis 70-75 cm"]
["14.11.3.","Siūlo spalva - Dažytas"]
["14.11.4.","Adatos tipas - Apvali 1/2"]
["14.11.5.","Adatos ilgis 19-20 mm"]
[null,"","","","Suma be PVM",null,"","","","","",""]
[null,"","","","PVM suma",null,"","","","","",""]
[null,"","","","Suma su PVM",null,"","","","","",""]
[]
["15.","Nesirezorbuojantys sintetiniai monofilamentiniai polipropileno siūlai"]
["15.1.","Nesirezorbuojantys sintetiniai monofilamentiniai polipropileno siūlai, adatos su grioveliais geresniai fiksacijai adatkotyje",120,"Vnt",null,null,null,null,"",""]
["15.1.1.","Siūlo storis USP - 0"]
["15.1.2.","Siūlo ilgis 70-75 cm"]
["15.1.3.","Siūlo spalva - Dažytas"]
["15.1.4.","Adatos tipas - Apvali 1/2"]
["15.1.5.","Adatos ilgis 29-30 mm"]
["15.2.","Nesirezorbuojantys sintetiniai monofilamentiniai polipropileno siūlai, adatos su grioveliais geresniai fiksacijai adatkotyje",60,"Vnt",null,null,null,null,"",""]
["15.2.1.","Siūlo storis USP - 4/0"]
["15.2.2.","Siūlo ilgis 85-90 cm"]
["15.2.3.","Siūlo spalva - Dažytas"]
["15.2.4.","Adatos tipas - Apvali 1/2, 2 adatos"]
["15.2.5.","Adatos ilgis 20-21 mm"]
["15.3.","Nesirezorbuojantys sintetiniai monofilamentiniai polipropileno siūlai, adatos su grioveliais geresniai fiksacijai adatkotyje",36,"Vnt",null,null,null,null,"",""]
["15.3.1.","Siūlo storis USP - 7/0"]
["15.3.2.","Siūlo ilgis 60-75 cm"]
["15.3.3.","Siūlo spalva - Dažytas"]
["15.3.4.","Adatos tipas - Apvali 3/8, 2 adatos"]
["15.3.5.","Adatos ilgis 9-10 mm"]
["15.4.","Nesirezorbuojantys sintetiniai monofilamentiniai polipropileno siūlai, adatos su grioveliais geresniai fiksacijai adatkotyje",36,"Vnt",null,null,null,null,"",""]
["15.4.1.","Siūlo storis USP - 7/0"]
["15.4.2.","Siūlo ilgis 60-75 cm"]
["15.4.3.","Siūlo spalva - Dažytas"]
["15.4.4.","Adatos tipas - Apvali 1/2, 2 adatos"]
["15.4.5.","Adatos ilgis 10-11 mm"]
["15.5.","Nesirezorbuojantys sintetiniai monofilamentiniai polipropileno siūlai, adatos su grioveliais geresniai fiksacijai adatkotyje",108,"Vnt",null,null,null,null,"",""]
["15.5.1.","Siūlo storis USP - 3/0"]
["15.5.2.","Siūlo ilgis 75-90 cm"]
["15.5.3.","Siūlo spalva - Dažytas"]
["15.5.4.","Adatos tipas - Apvali 1/2, 2 adatos"]
["15.5.5.","Adatos ilgis 25-26 mm"]
["15.6.","Nesirezorbuojantys sintetiniai monofilamentiniai polipropileno siūlai, adatos su grioveliais geresniai fiksacijai adatkotyje",180,"Vnt",null,null,null,null,"",""]
["15.6.1.","Siūlo storis USP - 5/0"]
["15.6.2.","Siūlo ilgis 70-75 cm"]
["15.6.3.","Siūlo spalva - Dažytas"]
["15.6.4.","Adatos tipas - Pjaunanti 3/8"]
["15.6.5.","Adatos ilgis 12-13 mm"]
["15.7.","Nesirezorbuojantys sintetiniai monofilamentiniai polipropileno siūlai, adatos su grioveliais geresniai fiksacijai adatkotyje",108,"Vnt",null,null,null,null,"",""]
["15.7.1.","Siūlo storis USP - 0"]
["15.7.2.","Siūlo ilgis 75-90 cm"]
["15.7.3.","Siūlo spalva - Dažytas"]
["15.7.4.","Adatos tipas - Pjaunanti 3/8"]
["15.7.5.","Adatos ilgis 39-40 mm"]
[null,"","","","Suma be PVM",null,"","","","","",""]
[null,"","","","PVM suma",null,"","","","","",""]
[null,"","","","Suma su PVM",null,"","","","","",""]

{"sheet":"Subtiekėjai","index":1,"n_rows":100,"n_cols":9,"rows_kept":100,"cut":false,"hidden":false,"merged":[[26,0,26,9],[28,0,28,9],[32,0,32,3],[32,4,32,9],[35,0,35,3],[35,4,35,9],[19,1,19,6],[19,7,19,9],[20,1,20,6],[20,7,20,9],[38,0,38,9],[21,1,21,6],[21,7,21,9],[24,0,24,3],[24,4,24,9],[25,0,25,9],[10,0,10,9],[12,0,12,9],[14,0,14,9],[16,1,16,6],[16,7,16,9],[18,1,18,6],[18,7,18,9],[17,1,17,6],[17,7,17,9],[7,0,7,1],[7,2,7,4],[7,5,7,7],[7,8,7,9],[8,0,8,1],[8,2,8,4],[8,5,8,7],[8,8,8,9],[5,0,5,1],[5,2,5,4],[5,5,5,7],[5,8,5,9],[6,0,6,1],[6,2,6,4],[6,5,6,7],[6,8,6,9],[4,0,4,1],[4,2,4,4],[4,5,4,7],[4,8,4,9],[1,0,1,9],[3,0,3,1],[3,2,3,4],[3,5,3,7],[3,8,3,9]]}
[]
["Sutarties vykdymui numatome pasitelkti šiuos subtiekėjus / subteikėjus / subrangovus(įrašyti visus subtiekėjus / subteikėjus / subrangovus nepriklausomai nuo tiekiamų prekių/ teikiamų paslaugų/ atliekamų darbų vertės):"]
[]
["Subtiekėjo / subteikėjo / subrangovo(-ų) pavadinimas (-ai)",null,"Adresas",null,null,"Trumpas aprašymas",null,null,"Procentas nuo pasiūlymo kainos be PVM"]
[]
[]
[]
[]
[]
[]
["Jeigu pirkimo dokumentų 18 punkte numatytas subtiekimo / subteikimo / subrangos apribojimas:\nMes patvirtiname, kad subtiekėjams / subteikėjams / subrangovams (tiekėjams, kuriuos pasamdysime dalies sutartyje numatytų prekių tiekimui /paslaugų teikimui / darbų atlikimui) perduodamų tiekti prekių / teikti paslaugų/ atlikti darbų dalis neviršysproc. pasiūlymo kainos be PVM."]
[]
["Mes patvirtiname, kad esame / nesame (nereikalingą išbraukti) laikomi asocijuotais (susijusiais) su Perkančiąja organizacija pagal Lietuvos Respublikoje galiojančių teisės aktų (Lietuvos Respublikos pelno mokesčio, Lietuvos Respublikos pridėtinės vertės mokesčio ir Lietuvos Respublikos gyventojų pajamų mokesčio įstatymų) nuostatas."]
[]
["Kartu su pasiūlymu pateikiami šie dokumentai:"]
[]
["Eil.Nr.","\"Pateiktų skaitmeninių dokumentų (ar jų kopijų) pavadinimas\n(pasiūlymą sudarančių konfidencialių dokumentų pavadinimai pažymėti prierašu KONFIDENCIALU)\"",null,null,null,null,null,"Prisegtos bylos (failo) pavadinimas "]
[]
[]
[]
[]
[]
[]
[]
["Pasiūlymo galiojimo užtikrinimui pateikiame :"]
[]
["(Nurodyti užtikrinimo būdą, dydį, dokumentus)"]
[]
["Pasiūlymas galioja iki termino, nustatyto pirkimo dokumentuose.Pasiūlymo neatskiriama dalis yra (rašoma, jeigu buvo reikalauta prie pasiūlymo pridėti atitinkamą dokumentą)"]
[]
[]
[]
["Tiekėjo arba jo įgalioto asmens pareigų pavadinimas"]
[]
[]
["Pasirašančio asmens vardas ir pavardė"]
[]
[]
["**kadangi visas pasiūlymas pasirašomas saugiu elektroniniu parašu, šio dokumento atskirai pasirašyti neprivaloma."]
[]
[]
[]
[]
[]
[]
[]
[]
[]
[]
[]
[]
[]
[]
[]
[]
[]
[]
[]
[]
[]
[]
[]
[]
[]
[]
[]
[]
[]
[]
[]
[]
[]
[]
[]
[]
[]
[]
[]
[]
[]
[]
[]
[]
[]
[]
[]
[]
[]
[]
[]
[]
[]
[]
[]
[]
[]
[]
[]
[]
["1620-2"]